Workbook

Sheet Cadastro (hidden)
B5: Registro: | C5: 0565 | G5: Cabeçalho
B6: Cliente: | C6: =VLOOKUP(C5,'[1]Livro de Registro'!$A:$B,2,0) -> Prefeitura Municipal de Nova Lima | G6: PREFEITURA MUNICIPAL DE NOVA LIMA
B7: Projeto: | C7: PROJETO DE PAVIMENTAÇÃO | G7: PROJETO DE INFRAESTRUTURA
B8: Cód. Projeto: | C8: BELAGIO | G8: ENSAIOS GEOTÉCNICOS DE LABORATÓRIO
B9: N° cliente: | C9: - | G9: RELATÓRIO TÉCNICO
B10: N° contratada: | C10: SND-PNL-030-RTE-04723-REVA
B11: Revisão: | C11: A
B12: Obra: | C12: =VLOOKUP(C5,'[1]Livro de Registro'!$A:$C,3,0) -> Pavimentação
B13: Local: | C13: =VLOOKUP(C5,'[1]Livro de Registro'!$A:$D,4,0) -> Belagio
B14: Material: | C14: Silte areno argiloso com pedregulho
B15: Furo: | C15: =VLOOKUP(C5,'[1]Livro de Registro'!$A:$G,7,0) -> ST-02
B16: Profundidade (m): | C16: =VLOOKUP(C5,'[1]Livro de Registro'!$A:$I,9,0) -> 0,15 a 0,60 m
B17: Coordenadas: | C17: =VLOOKUP(C5,'[1]Livro de Registro'!$A:$H,8,0) -> 0
B18: Dia | C18: 17
B19: Mês | C19: abril
B20: Verificador: | C20: DLFF
C21: =CONCATENATE("Belo Horizonte, ",C18," de ", C19," de 2023.") -> Belo Horizonte, 17 de abril de 2023.
C22: Inserir logo cliente em todas as páginas.
A108: CLIENTE: | C108: =IF(C5="","",VLOOKUP($C$5,'[2]Livro de Registro'!$A$1:$I$8000,2)) -> Prefeitura Municipal de Governador Valadares/MG
A109: PROJETO/OBRA: | C109: =IF(C5="","",VLOOKUP($C$5,'[2]Livro de Registro'!$A$1:$I$8000,3)) -> Rua Dois, S/Nº - Bairro Planalto | F109: FURO/AM.: | I109: =IF(C5="","",VLOOKUP($C$5,'[2]Livro de Registro'!$A$1:$I$8000,7)) -> 04
A110: TRECHO: | C110: =IF(C5="","",VLOOKUP($C$5,'[2]Livro de Registro'!$A$1:$I$8000,4)) -> A.R - 005 | F110: ESTACA: | I110: =IF(C5="","",VLOOKUP($C$5,'[2]Livro de Registro'!$A$1:$I$8000,8)) -> 0
A111: SUB-TRECHO : | C111: =IF(C5="","",VLOOKUP($C$5,'[2]Livro de Registro'!$A$1:$I$8000,5)) -> 0 | F111: PROFUND.: | I111: =IF(C5="","",VLOOKUP($C$5,'[2]Livro de Registro'!$A$1:$I$8000,9)) -> 0,00 - 2,00
A112: ESTUDO : | C112: =IF(C5="","",VLOOKUP($C$5,'[2]Livro de Registro'!$A$1:$M$8000,6)) -> 2º Talude
A113: CLASS. MATERIAL: | C113: =IF(C6="","",VLOOKUP($C$5,'[2]Livro de Registro'!$A$1:$M$8000,12)) -> Silte rosado

Sheet CARACTERIZAÇÃO
H4: CLASSIFICAÇÃO USO INTERNO | L4: PROJETO DE PAVIMENTAÇÃO
L6: BELAGIO
B7: PREFEITURA MUNICIPAL DE NOVA LIMA | L7: Nº CLIENTE | R7: PÁGINA
B8: PROJETO DE INFRAESTRUTURA | L8: - | R8: 1/ 6
B9: ENSAIOS GEOTÉCNICOS DE LABORATÓRIO | L9: Nº (CONTRATADA) | R9: REV. | T9: =(100/(100+D29)) -> 0.9993629756
B10: RELATÓRIO TÉCNICO | L10: SND-PNL-030-RTE-04723-REVA | R10: A
B12: ANÁLISE GRANULOMÉTRICA E MASSA ESPECÍFICA DOS SÓLIDOS ABNT 7118 e ABNT 6458
B14: Cliente: | C14: Prefeitura Municipal de Nova Lima | L14: Registro: | O14: 0565 | U14: =IF(E182=0,0,1) -> 1 | V14: =ABS($E$182-$V$20)/$V$20*100 -> 0.6747541864 | W14: =IF(AND(V14>5,V14=V19),0,1) -> 1 | X14: =IF(W14=0,0,$E$182) -> 25 | Y14: =IF(ABS(X14-$Y$20)/$Y$20*100=100,0,ABS(X14-$Y$20)/$Y$20*100) -> 2.005771036 | Z14: =IF(OR(Y14=0,(AND(Y14>5,Y14=$X$19))),0,1) -> 1 | AA14: =IF(Z14=0,0,$E$182) -> 25 | AB14: =IF(ABS(AA14-$AB$20)/$AB$20*100=100,0,ABS(AA14-$AB$20)/$AB$20*100) -> 2.005771036 | AC14: =IF(OR(AB14=0,(AND(AB14>5,AB14=$AA$19))),0,1) -> 1 | AD14: =IF(AC14=0,0,$E$182) -> 25 | AE14: =IF(ABS(AD14-$AE$20)/$AE$20*100=100,0,ABS(AD14-$AE$20)/$AE$20*100) -> 2.005771036 | AF14: =IF(OR(AE14=0,(AND(AE14>5,AE14=$AD$19))),0,1) -> 1 | AG14: =IF(AF14=0,0,$E$182) -> 25 | AH14: =IF(ABS(AG14-$AH$20)/$AH$20*100=100,0,ABS(AG14-$AH$20)/$AH$20*100) -> 2.005771036
B15: Obra: | C15: Pavimentação | L15: Furo: | O15: ST-02 | U15: =IF(H182=0,0,1) -> 1 | V15: =ABS($H$182-$V$20)/$V$20*100 -> 5.209653024 | W15: =IF(AND(V15>5,V15=V19),0,1) -> 1 | X15: =IF(W15=0,0,$H$182) -> 26.12612613 | Y15: =IF(ABS(X15-$Y$20)/$Y$20*100=100,0,ABS(X15-$Y$20)/$Y$20*100) -> 2.408383422 | Z15: =IF(OR(Y15=0,(AND(Y15>5,Y15=$X$19))),0,1) -> 1 | AA15: =IF(Z15=0,0,$H$182) -> 26.12612613 | AB15: =IF(ABS(AA15-$AB$20)/$AB$20*100=100,0,ABS(AA15-$AB$20)/$AB$20*100) -> 2.408383422 | AC15: =IF(OR(AB15=0,(AND(AB15>5,AB15=$AA$19))),0,1) -> 1 | AD15: =IF(AC15=0,0,$H$182) -> 26.12612613 | AE15: =IF(ABS(AD15-$AE$20)/$AE$20*100=100,0,ABS(AD15-$AE$20)/$AE$20*100) -> 2.408383422 | AF15: =IF(OR(AE15=0,(AND(AE15>5,AE15=$AD$19))),0,1) -> 1 | AG15: =IF(AF15=0,0,$H$182) -> 26.12612613 | AH15: =IF(ABS(AG15-$AH$20)/$AH$20*100=100,0,ABS(AG15-$AH$20)/$AH$20*100) -> 2.408383422
B16: Local: | C16: Belagio | L16: Profundidade: | O16: 0,15 a 0,60 m | U16: =IF(K182=0,0,1) -> 1 | V16: =ABS($K$182-$V$20)/$V$20*100 -> 0.322025558 | W16: =IF(AND(V16>5,V16=V19),0,1) -> 1 | X16: =IF(W16=0,0,$K$182) -> 24.75247525 | Y16: =IF(ABS(X16-$Y$20)/$Y$20*100=100,0,ABS(X16-$Y$20)/$Y$20*100) -> 2.976010927 | Z16: =IF(OR(Y16=0,(AND(Y16>5,Y16=$X$19))),0,1) -> 1 | AA16: =IF(Z16=0,0,$K$182) -> 24.75247525 | AB16: =IF(ABS(AA16-$AB$20)/$AB$20*100=100,0,ABS(AA16-$AB$20)/$AB$20*100) -> 2.976010927 | AC16: =IF(OR(AB16=0,(AND(AB16>5,AB16=$AA$19))),0,1) -> 1 | AD16: =IF(AC16=0,0,$K$182) -> 24.75247525 | AE16: =IF(ABS(AD16-$AE$20)/$AE$20*100=100,0,ABS(AD16-$AE$20)/$AE$20*100) -> 2.976010927 | AF16: =IF(OR(AE16=0,(AND(AE16>5,AE16=$AD$19))),0,1) -> 1 | AG16: =IF(AF16=0,0,$K$182) -> 24.75247525 | AH16: =IF(ABS(AG16-$AH$20)/$AH$20*100=100,0,ABS(AG16-$AH$20)/$AH$20*100) -> 2.976010927
B17: Material: | C17: Silte areno argiloso com pedregulho | L17: Coordenadas: | O17: 0 | U17: =IF(N182=0,0,1) -> 1 | V17: =ABS($N$182-$V$20)/$V$20*100 -> 5.379181952 | W17: =IF(AND(V17>5,V17=V19),0,1) -> 1 | X17: =IF(W17=0,0,$N$182) -> 26.1682243 | Y17: =IF(ABS(X17-$Y$20)/$Y$20*100=100,0,ABS(X17-$Y$20)/$Y$20*100) -> 2.573398542 | Z17: =IF(OR(Y17=0,(AND(Y17>5,Y17=$X$19))),0,1) -> 1 | AA17: =IF(Z17=0,0,$N$182) -> 26.1682243 | AB17: =IF(ABS(AA17-$AB$20)/$AB$20*100=100,0,ABS(AA17-$AB$20)/$AB$20*100) -> 2.573398542 | AC17: =IF(OR(AB17=0,(AND(AB17>5,AB17=$AA$19))),0,1) -> 1 | AD17: =IF(AC17=0,0,$N$182) -> 26.1682243 | AE17: =IF(ABS(AD17-$AE$20)/$AE$20*100=100,0,ABS(AD17-$AE$20)/$AE$20*100) -> 2.573398542 | AF17: =IF(OR(AE17=0,(AND(AE17>5,AE17=$AD$19))),0,1) -> 1 | AG17: =IF(AF17=0,0,$N$182) -> 26.1682243 | AH17: =IF(ABS(AG17-$AH$20)/$AH$20*100=100,0,ABS(AG17-$AH$20)/$AH$20*100) -> 2.573398542
G18: EQUIPAMENTOS | U18: =IF(Q182=0,0,1) -> 1 | V18: =ABS($Q$182-$V$20)/$V$20*100 -> 10.9415636 | W18: =IF(AND(V18>5,V18=V19),0,1) -> 0 | X18: =IF(W18=0,0,$Q$182) -> 0 | Y18: =IF(ABS(X18-$Y$20)/$Y$20*100=100,0,ABS(X18-$Y$20)/$Y$20*100) -> 0 | Z18: =IF(OR(Y18=0,(AND(Y18>5,Y18=$X$19))),0,1) -> 0 | AA18: =IF(Z18=0,0,$Q$182) -> 0 | AB18: =IF(ABS(AA18-$AB$20)/$AB$20*100=100,0,ABS(AA18-$AB$20)/$AB$20*100) -> 0 | AC18: =IF(OR(AB18=0,(AND(AB18>5,AB18=$AA$19))),0,1) -> 0 | AD18: =IF(AC18=0,0,$Q$182) -> 0 | AE18: =IF(ABS(AD18-$AE$20)/$AE$20*100=100,0,ABS(AD18-$AE$20)/$AE$20*100) -> 0 | AF18: =IF(OR(AE18=0,(AND(AE18>5,AE18=$AD$19))),0,1) -> 0 | AG18: =IF(AF18=0,0,$Q$182) -> 0 | AH18: =IF(ABS(AG18-$AH$20)/$AH$20*100=100,0,ABS(AG18-$AH$20)/$AH$20*100) -> 0
B19: Balança (n°): | C19: BLÇ-001 | I19: Estufa (n°): | J19: ET-002 | Q19: Termômetro (n°): | R19: TRM-007 | V19: =MAX(V14:V18) -> 10.9415636 | X19: =MAX(Y14:Y18) -> 2.976010927 | AA19: =MAX(AB14:AB18) -> 2.976010927 | AD19: =MAX(AE14:AE18) -> 2.976010927 | AG19: =MAX(AH14:AH18) -> 2.976010927
B20: TEOR DE UMIDADE ABNT 6457 | J20: PENEIRAMENTO GRAÚDO ABNT 7181 | U20: media = | V20: =SUM(E182:S182)/SUM(U14:U18) -> 24.83244206 | X20: media = | Y20: =SUM(X14:X18)/SUM(W14:W18) -> 25.51170642 | AA20: media = | AB20: =SUM(AA14:AA18)/SUM(Z14:Z18) -> 25.51170642 | AD20: media = | AE20: =SUM(AD14:AD18)/SUM(AC14:AC18) -> 25.51170642 | AG20: media = | AH20: =SUM(AG14:AG18)/SUM(AF14:AF18) -> 25.51170642
B22: CAPSULA (n°): | D22: 14 | F22: 15 | H22: 73 | J22: RECIPIENTE (n°): | R22: G-27
B23: CAPSULA + SOLO ÚMIDO (g): | D23: 72.21 | F23: 78.16 | H23: 75.98
B24: CAPSULA + SOLO SECO (g): | D24: 72.18 | F24: 78.13 | H24: 75.93 | J24: PENEIRA (n°): | L24: ABERTURA (mm): | N24: PESO RETIDO (g): | P24: PESO RETIDO ACUMULADO (g): | R24: % DA AMOSTRA QUE PASSA (%):
B25: TARA DA CAPSULA (g): | D25: 16.53 | F25: 18.33 | H25: 18.56
B26: ÁGUA (g): | D26: 0.03 | F26: 0.03 | H26: 0.05 | J26: 2" | L26: 50 | N26: 0 | P26: 0 | R26: 100
B27: SOLO SECO (g): | D27: 55.65 | F27: 59.8 | H27: 57.37 | J27: 1 1/2" | L27: 38 | N27: 0 | P27: 0 | R27: 100
B28: TEOR DE UMIDADE (%): | D28: 0.0539083558 | F28: 0.05016722408 | H28: 0.08715356458 | J28: 1" | L28: 25 | N28: 141.1 | P28: 141.1 | R28: 96.25757537
B29: TEOR DE UMIDADE MÉDIO (%): | D29: 0.06374304815 | J29: 3/4" | L29: 19 | N29: 103.78 | P29: 244.88 | R29: 93.50499687
B30: TEMPERATURA (°C): | H30: 110 | J30: 3/8" | L30: 9.5 | N30: 298.8 | P30: 543.68 | R30: 85.57986237
B31: AMOSTRA TOTAL | J31: 4 | L31: 4.8 | N31: 262.17 | P31: 805.85 | R31: 78.62627297
J32: 10 | L32: 2 | N32: 270.83 | P32: 1076.68 | R32: 71.44299259
B33: AMOSTRA TOTAL ÚMIDA (g): | H33: 3772 | J33: PENEIRAMENTO FINO ABNT 7181
B34: AMOSTRA TOTAL SECA (g): | H34: 3770.283015
B35: RETIDO NA PENEIRA (2mm) n°10 (g): | H35: 1076.68 | J35: RECIPIENTE (n°): | R35: F-05
B36: PASSADO NA PENEIRA (2mm) n°10 (g): | H36: 2693.603015
B37: SEDIMENTAÇÃO ABNT 7181 | J37: PENEIRA (n°): | L37: ABERTURA (mm): | N37: PESO RETIDO (g): | P37: PESO RETIDO ACUMULADO (g): | R37: % DA AMOSTRA QUE PASSA (%):
B39: DEFLOCULANTE: | H39: HEXA | J39: 16 | L39: 1.2 | N39: 1.64 | P39: 1.64 | R39: 69.76907493
B40: BÉQUER (n°): | H40: 008 | J40: 30 | L40: 0.6 | N40: 3.47 | P40: 5.11 | R40: 66.22731011
B41: DENSIMETRO (n°): | H41: 1 | J41: 40 | L41: 0.42 | N41: 1.16 | P41: 6.27 | R41: 65.04331956
B42: PROVETA (n°): | H42: 007 | J42: 50 | L42: 0.3 | N42: 1.04 | P42: 7.31 | R42: 63.9818108
B43: PESO AMOSTRA ÚMIDA (g): | H43: 70.04 | J43: 60 | L43: 0.25 | N43: 1.6 | P43: 8.91 | R43: 62.34872039
B44: PESO AMOSTRA SECA (g): | H44: 69.99538281 | J44: 100 | L44: 0.15 | N44: 2.71 | P44: 11.62 | R44: 59.58267352 | T44: 15
B45: DENSIDADE DOS GRÃOS d (g/cm3): | H45: 2.889653089 | J45: 200 | L45: 0.075 | N45: 2.92 | P45: 14.54 | R45: 56.60228353 | T45: 30
B46: Hora | D46: Dt | F46: Leitura - L | H46: T (oC) | J46: Diâmetro dos Grãos (mm) | L46: Correção - CI | N46: Leit. Corrigida - Lc | Q46: (%) Finos Totais | T46: 60
B47: 08:26:00 | D47: 15" | F47: 1036.5 | H47: 21.9 | J47: 0.08742950563 | L47: -1.31841202 | N47: 1035.18 | Q47: 54.9 | T47: 120
B48: 08:26:30 | D48: 30" | F48: 1036 | H48: 21.9 | J48: 0.06210479615 | L48: -1.31841202 | N48: 1034.68 | Q48: 54.1 | T48: 240
B49: 08:27:00 | D49: 60" | F49: 1034.5 | H49: 21.9 | J49: 0.04450924138 | L49: -1.31841202 | N49: 1033.18 | Q49: 51.8 | T49: 480
B50: 08:28:00 | D50: 2' | F50: 1033 | H50: 21.9 | J50: 0.03188763305 | L50: -1.31841202 | N50: 1031.68 | Q50: 49.4 | T50: 900
B51: 08:30:00 | D51: 4' | F51: 1031.25 | H51: 21.9 | J51: 0.02288544089 | L51: -1.31841202 | N51: 1029.93 | Q51: 46.7 | T51: 1800
B52: 08:34:00 | D52: 8' | F52: 1028.5 | H52: 21.9 | J52: 0.01587441324 | L52: -1.31841202 | N52: 1027.18 | Q52: 42.4 | T52: 3600
B53: 08:41:00 | D53: 15' | F53: 1026 | H53: 21.9 | J53: 0.011842275 | L53: -1.31841202 | N53: 1024.68 | Q53: 38.5 | T53: 7200
B54: 08:56:00 | D54: 30' | F54: 1023.25 | H54: 21.9 | J54: 0.00856342994 | L54: -1.31841202 | N54: 1021.93 | Q54: 34.2 | T54: 14400
B55: 09:26:00 | D55: 1h | F55: 1019.75 | H55: 22.1 | J55: 0.006206877322 | L55: -1.27075678 | N55: 1018.48 | Q55: 28.8 | T55: 28800
B56: 10:26:00 | D56: 2h | F56: 1015.25 | H56: 22.5 | J56: 0.00451316019 | L56: -1.1748775 | N56: 1014.08 | Q56: 22 | T56: 86400
B57: 12:26:00 | D57: 4h | F57: 1012.75 | H57: 23.5 | J57: 0.003208353164 | L57: -0.9327125 | N57: 1011.82 | Q57: 18.4
B58: 16:26:00 | D58: 8h | F58: 1009 | H58: 22.1 | J58: 0.002365756822 | L58: -1.27075678 | N58: 1007.73 | Q58: 12.1
B59: 1.351388889 | D59: 24h | F59: 1006 | H59: 21.5 | J59: 0.001402078868 | L59: -1.4130625 | N59: 1004.59 | Q59: 7.2
B63: Belo Horizonte, 17 de abril de 2023. | L63: Operador: | N63: André
L64: Verificador: | N64: DLFF
B66: Nota: A repetição deste ensaio estará sujeita a aprovação prévia e por escrito da contratante.
H67: CLASSIFICAÇÃO USO INTERNO | L67: PROJETO DE PAVIMENTAÇÃO
L69: BELAGIO
B70: PREFEITURA MUNICIPAL DE NOVA LIMA | L70: Nº CLIENTE | R70: PÁGINA
B71: PROJETO DE INFRAESTRUTURA | L71: - | R71: 2/ 6
B72: ENSAIOS GEOTÉCNICOS DE LABORATÓRIO | L72: Nº (CONTRATADA) | R72: REV.
B73: RELATÓRIO TÉCNICO | L73: SND-PNL-030-RTE-04723-REVA | R73: A
B75: ANÁLISE GRANULOMÉTRICA E MASSA ESPECÍFICA DOS SÓLIDOS ABNT 7118 e ABNT 6458
B77: Cliente: | C77: Prefeitura Municipal de Nova Lima | L77: Registro: | O77: 0565
B78: Obra: | C78: Pavimentação | L78: Furo: | O78: ST-02
B79: Local: | C79: Belagio | L79: Profundidade: | O79: 0,15 a 0,60 m | U79: 2" | V79: 50 | X79: =100-R26 -> 0
B80: Material: | C80: Silte areno argiloso com pedregulho | L80: Coordenadas: | O80: 0 | U80: 1 1/2" | V80: 38 | X80: =R26-R27 -> 0 | Y80: =se -> 
G81: EQUIPAMENTOS
B82: Balança (n°): | C82: BLÇ-001 | I82: Estufa (n°): | J82: ET-002 | Q82: Termômetro (n°): | R82: TRM-007
U83: 1" | V83: 25 | X83: =R27-R28 -> 3.742424625 | AH83: =L26 -> 50 | AI83: =R26 -> 100
U84: 3/4" | V84: 19 | X84: =R28-R29 -> 2.752578509 | AH84: 38 | AI84: 100
U85: 3/8" | V85: 9.5 | X85: =R29-R30 -> 7.9251345 | AH85: 25 | AI85: 96.25757537
U86: No 4 | V86: 4.8 | X86: =R30-R31 -> 6.953589397 | AH86: 19 | AI86: 93.50499687
U87: No 10 | V87: 2 | X87: =R31-R32 -> 7.183280377 | AH87: 9.5 | AI87: 85.57986237
AH88: 4.8 | AI88: 78.62627297
U89: 16 | V89: 1.2 | X89: =R32-R39 -> 1.673917666 | AH89: 2 | AI89: 71.44299259
U90: 30 | V90: 0.6 | X90: =R39-R40 -> 3.541764819 | AH90: =L39 -> 1.2 | AI90: =R39 -> 69.76907493
U91: 40 | V91: 0.42 | X91: 1.183990545 | AH91: 0.6 | AI91: 66.22731011
U92: 50 | V92: 0.3 | X92: 1.061508764 | AH92: 0.42 | AI92: 65.04331956
U93: 60 | V93: 0.25 | X93: 1.633090406 | AH93: 0.3 | AI93: 63.9818108
U94: 100 | V94: 0.15 | X94: 2.766046876 | AH94: 0.25 | AI94: 62.34872039
U95: 200 | V95: 0.075 | X95: 2.980389991 | AH95: 0.15 | AI95: 59.58267352
AH96: 0.075 | AI96: 56.60228353
U97: 1 | V97: =J47 -> 0.08742950563 | X97: =IF(V97>0.06,R45-Q47,"") -> 1.702283525 | Y97: =IF(AND(V97<=0.06,V97>0.002),R45-Q47, " ") ->  | Z97: =IF(V97<=0.002,R45-Q47, "") ->  | AH97: =J47 -> 0.08742950563 | AI97: =Q47 -> 54.9
U98: 2 | V98: 0.06210479615 | X98: =IF(V98>0.06,Q47-Q48,"") -> 0.8 | Y98: =IF(AND(V98<=0.06,V98>0.002),Q47-Q48, " ") ->  | Z98: =IF(V98<=0.002,Q47-Q48, "") ->  | AH98: 0.06210479615 | AI98: 54.1
U99: 3 | V99: 0.04450924138 | Y99: 2.3 | AH99: 0.04450924138 | AI99: 51.8
U100: 4 | V100: 0.03188763305 | Y100: 2.4 | AH100: 0.03188763305 | AI100: 49.4
B101: Argila | E101: 12.1 | I101: % | J101: Þ | O101: f < 0,002 mm | U101: 5 | V101: 0.02288544089 | Y101: 2.7 | AH101: 0.02288544089 | AI101: 46.7
B102: Silte | E102: 42 | I102: % | J102: Þ | O102: 0,002 mm < f < 0,06 mm | U102: 6 | V102: 0.01587441324 | Y102: 4.3 | AH102: 0.01587441324 | AI102: 42.4
B103: Areia Fina | E103: 8.248720392 | I103: % | J103: Þ | O103: 0,06 mm < f < 0,2 mm | U103: 7 | V103: 0.011842275 | Y103: 3.9 | AH103: 0.011842275 | AI103: 38.5
B104: Areia Média | E104: 7.420354533 | I104: % | J104: Þ | O104: 0,2 mm < f < 0,6 mm | U104: 8 | V104: 0.00856342994 | Y104: 4.3 | AH104: 0.00856342994 | AI104: 34.2
B105: Areia Grossa | E105: 8.857198043 | I105: % | J105: Þ | O105: 0,6 mm < f < 2 mm | U105: 9 | V105: 0.006206877322 | Y105: 5.4 | AH105: 0.006206877322 | AI105: 28.8
B106: Pedregulho Fino | E106: 6.953589397 | I106: % | J106: Þ | O106: 2 mm < f < 6 mm | U106: 10 | V106: 0.00451316019 | Y106: 6.8 | AH106: 0.00451316019 | AI106: 22
B107: Pedregulho Médio | E107: 10.67771301 | I107: % | J107: Þ | O107: 6 mm < f < 20 mm | U107: 11 | V107: 0.003208353164 | Y107: 3.6 | AH107: 0.003208353164 | AI107: 18.4
B108: Pedregulho Grosso | E108: 3.742424625 | I108: % | J108: Þ | O108: f > 20 mm | U108: 12 | V108: 0.002365756822 | Y108: 6.3 | AH108: 0.002365756822 | AI108: 12.1
B109: Total | E109: 100 | U109: 13 | V109: 0.001402078868 | X109: =IF(V109>0.06,(Q58-Q59)+Q59,"") ->  | Y109: =IF(AND(V109<=0.06,V109>0.002),(Q58-Q59)+Q59, " ") ->  | Z109: =IF(V109<=0.002,(Q58-Q59)+Q59, "") -> 12.1 | AH109: 0.001402078868 | AI109: 7.2
B110: Argila = | E110: 12.1 | J110: Areia = | O110: 24.52627297
B111: Silte = | E111: 42 | J111: Pedregulho = | O111: 21.37372703 | W111: =SUM(X79:X95) -> 43.39771647 | Y111: =SUM(X97:X109,Y97:Y109,Z97:Z109) -> 56.60228353
B112: DETERMINAÇÃO DA MASSA ESPECÍFICA DOS SÓLIDOS Grãos < # 4,8 mm (ABNT 6458)
B113: REPETIÇÃO TEOR DE UMIDADE | R113: Não | U113: Sim | V113: TEOR DE UMIDADE ABNT 6457
B114: PICNOMETRO (n°): | C114: SOLO ÚMIDO (g) | D114: PICNÔMETRO + SOLO + ÁGUA (g): | F114: T (C°): | H114: PICNÔMETRO + ÁGUA (g): | J114: SOLO SECO (g): | L114: VOLUME DESLOCADO (g): | N114: d (g/cm³) | P114: Diferença (g/cm³) | R114: d med (g/cm³) | U114: Não
V115: CAPSULA (n°):
B116: 2 | C116: 55.04 | D116: 667.41 | F116: 20.8 | H116: 631.41 | J116: 55.00493818 | L116: 19.00493818 | N116: 2.888629686 | P116: -0.002046805993 | R116: 2.889653089 | V116: CAPSULA + SOLO ÚMIDO (g):
B117: 15 | C117: 55.05 | D117: 659.48 | F117: 20.8 | H117: 623.46 | J117: 55.01493181 | L117: 18.99493181 | N117: 2.890676492 | U117: =D116-H116 -> 36 | V117: CAPSULA + SOLO SECO (g):
B118: LIMITE DE LIQUIDEZ (LL): | D118: 39.2 | F118: % QUE PASSA | H118: #1" (25mm): | J118: 96.25757537 | L118: #4 (4,8mm): | N118: 78.62627297 | P118: #200 (0,075mm): | R118: 56.60228353 | U118: =D117-H117 -> 36.02 | V118: TARA DA CAPSULA (g): | X118: =VLOOKUP(X115,TABELAS!$A:$B,2,FALSE) ->  | Y118: =VLOOKUP(Y115,TABELAS!$A:$B,2,FALSE) ->  | Z118: =VLOOKUP(Z115,TABELAS!$A:$B,2,FALSE) -> 
B119: LIMITE DE PLASTICIDADE (LP): | D119: 25.51170642 | H119: #3/4" (19mm): | J119: 93.50499687 | L119: # 10 (2mm): | N119: 71.44299259 | U119: =U117-U118 -> -0.02 | V119: ÁGUA (g): | X119: =X116-X117 -> 0 | Y119: 0 | Z119: 0
B120: ÍNDICE DE PLASTICIDADE (IP): | D120: 13.68829358 | H120: #3/8" (9,5mm): | J120: 85.57986237 | L120: #40 (0,42mm): | N120: 65.04331956 | V120: SOLO SECO (g):
B121: CLASSIFICAÇÃO HRB (Highway Research Board) | I121: CLASSIFICAÇÃO S.U.C.S (Sistema Unificado de Classificação do Solo) | V121: TEOR DE UMIDADE (%): | X121: =(X119/X120)*100 ->  | Y121: =(Y119/Y120)*100 ->  | Z121: =(Z119/Z120)*100 -> 
B122: IG | C122: 5.795774138 | E122: HRB | I122: ML | V122: TEOR DE UMIDADE MÉDIO (%): | X122: =AVERAGE(X121:Z121) -> 
B123: SOLOS FINOS | K123: SOLOS GROSSOS
B124: L: baixa compressibilidade | E124: O: silte ou argila orgânicos | K124: G: pedregulho | O124: P: mal graduado
B125: H: alta compressibilidade | E125: C: argila inorgânica | K125: S: areia | O125: C: com argila
B126: M: silte | K126: W: bem graduado
B128: Belo Horizonte, 17 de abril de 2023. | L128: Operador: | N128: André
L129: Verificador: | N129: DLFF
B131: Nota: A repetição deste ensaio estará sujeita a aprovação prévia e por escrito da contratante.
H132: CLASSIFICAÇÃO USO INTERNO | L132: PROJETO DE PAVIMENTAÇÃO
L134: BELAGIO
B135: PREFEITURA MUNICIPAL DE NOVA LIMA | L135: Nº CLIENTE | R135: PÁGINA
B136: PROJETO DE INFRAESTRUTURA | L136: - | R136: 3/ 6
B137: ENSAIOS GEOTÉCNICOS DE LABORATÓRIO | L137: Nº (CONTRATADA) | R137: REV.
B138: RELATÓRIO TÉCNICO | L138: SND-PNL-030-RTE-04723-REVA | R138: A
B140: LIMITE DE LIQUIDEZ E PLASTICIDADE ABNT 6459 e ABNT 7180
B142: Cliente: | C142: Prefeitura Municipal de Nova Lima | L142: Registro: | O142: 0565
B143: Obra: | C143: Pavimentação | L143: Furo: | O143: ST-02
B144: Local: | C144: Belagio | L144: Profundidade: | O144: 0,15 a 0,60 m
B145: Material: | C145: Silte areno argiloso com pedregulho | L145: Coordenadas: | O145: 0
G146: EQUIPAMENTOS
B147: Balança (n°): | C147: BLÇ-001 | Q147: Estufa (n°): | R147: ET-002
B148: L I M I T E D E L I Q U I D E Z - NBR 6459
B149: CAPSULA (n°): | E149: 17 | H149: 67 | K149: 47 | N149: 84 | Q149: 2
B150: CAPSULA + SOLO ÚMIDO (g): | E150: 12.8 | H150: 13.61 | K150: 12.36 | N150: 12.11 | Q150: 11.68
B151: CAPSULA + SOLO SECO (g): | E151: 10.64 | H151: 11.11 | K151: 10.66 | N151: 10.45 | Q151: 9.88
B152: ÁGUA (g): | E152: 2.16 | H152: 2.5 | K152: 1.7 | N152: 1.66 | Q152: 1.8
B153: TARA DA CAPSULA (g): | E153: 5.65 | H153: 5.12 | K153: 6.21 | N153: 6.04 | Q153: 5.01
B154: PESO DE SOLO SECO (g): | E154: 4.99 | H154: 5.99 | K154: 4.45 | N154: 4.41 | Q154: 4.87
B155: TEOR DE UMIDADE (%): | E155: 43.28657315 | H155: 41.73622705 | K155: 38.20224719 | N155: 37.64172336 | Q155: 36.96098563
B156: GOLPES (n°): | E156: 14 | H156: 21 | K156: 25 | N156: 31 | Q156: 35
U165: LL
U166: 39.2
V167: 25
B175: L I M I T E D E P L A S T I C I D A D E - NBR 7180
B176: CAPSULA (n°): | E176: 21 | H176: 61 | K176: 70 | N176: 92 | Q176: 96
B177: CAPSULA + SOLO ÚMIDO (g): | E177: 6.92 | H177: 7.16 | K177: 7.32 | N177: 7.01 | Q177: 7.48
B178: CAPSULA + SOLO SECO (g): | E178: 6.61 | H178: 6.87 | K178: 7.07 | N178: 6.73 | Q178: 7.25
B179: ÁGUA (g): | E179: 0.31 | H179: 0.29 | K179: 0.25 | N179: 0.28 | Q179: 0.23
B180: TARA DA CAPSULA (g): | E180: 5.37 | H180: 5.76 | K180: 6.06 | N180: 5.66 | Q180: 6.21
B181: PESO DE SOLO SECO (g): | E181: 1.24 | H181: 1.11 | K181: 1.01 | N181: 1.07 | Q181: 1.04
B182: TEOR DE UMIDADE (%): | E182: 25 | H182: 26.12612613 | K182: 24.75247525 | N182: 26.1682243 | Q182: 22.11538462 | U182: 5% média
B183: Média 1 | E183: 24.83244206 | U183: =E184*(5%) -> 1.275585321
B184: Média 2 (excluindo ponto) | E184: 25.51170642
U185: =E184+U183 -> 26.78729174
C186: RESULTADOS | U186: =E184-U183 -> 24.2361211
C187: LIMITE DE LIQUIDEZ (%): | J187: 39.2
C188: LIMITE DE PLASTICIDADE (%): | J188: 25.51170642 | U188: =IF(AND(J182>=$U$186,J182<=$U$185),J182,"0") -> 0 | V188: =IF(AND(M182>=$U$186,M182<=$U$185),M182,"nok") -> nok | W188: =IF(AND(O182>=$U$186,O182<=$U$185),O182,"nok") -> nok | X188: =IF(AND(Q182>=$U$186,Q182<=$U$185),Q182,"nok") -> nok | Y188: =IF(AND(R182>=$U$186,R182<=$U$185),R182,"nok") -> nok
C189: ÍNDICE DE PLASTICIDADE (%): | J189: 13.68829358
B192: Belo Horizonte, 17 de abril de 2023. | L192: Operador: | N192: Sandro
L193: Verificador: | N193: DLFF
B195: Nota: A repetição deste ensaio estará sujeita a aprovação prévia e por escrito da contratante.
H196: CLASSIFICAÇÃO USO INTERNO | L196: PROJETO DE PAVIMENTAÇÃO
L198: BELAGIO
B199: PREFEITURA MUNICIPAL DE NOVA LIMA | L199: Nº CLIENTE | R199: PÁGINA
B200: PROJETO DE INFRAESTRUTURA | L200: - | R200: 4/ 6
B201: ENSAIOS GEOTÉCNICOS DE LABORATÓRIO | L201: Nº (CONTRATADA) | R201: REV.
B202: RELATÓRIO TÉCNICO | L202: SND-PNL-030-RTE-04723-REVA | R202: A
B204: TEOR DE UMIDADE NATURAL ABNT 6457
B206: Cliente: | C206: Prefeitura Municipal de Nova Lima | L206: Registro: | O206: 0565
B207: Obra: | C207: Pavimentação | L207: Furo: | O207: ST-02
B208: Local: | C208: Belagio | L208: Profundidade: | O208: 0,15 a 0,60 m
B209: Material: | C209: Silte areno argiloso com pedregulho | L209: Coordenadas: | O209: 0
G210: EQUIPAMENTOS
B211: Balança (n°): | C211: BLÇ-001 | I211: Estufa (n°): | J211: ET-002 | Q211: Termômetro (n°): | R211: TRM-007
B212: TEMPERATURA (°C): | D212: 110
B213: CAPSULA (n°): | E213: 14 | J213: 48 | O213: 63
B214: CAPSULA + SOLO ÚMIDO (g): | E214: 58.99 | J214: 55.06 | O214: 56.36
B215: CAPSULA + SOLO SECO (g): | E215: 51.74 | J215: 48.48 | O215: 49.78
B216: TARA DA CAPSULA (g): | E216: 16.53 | J216: 18.33 | O216: 18.05
B217: ÁGUA (g): | E217: 7.25 | J217: 6.58 | O217: 6.58
B218: SOLO SECO (g): | E218: 35.21 | J218: 30.15 | O218: 31.73
B219: TEOR DE UMIDADE (%): | E219: 20.59074127 | J219: 21.82421227 | O219: 20.73747242 | U219: =$E$220-V219 -> 19.99826822 | V219: =$E$220*5% -> 1.052540433
B220: TEOR DE UMIDADE MÉDIO (%): | E220: 21.05080865 | U220: =$E$220+V220 -> 22.10334909 | V220: =$E$220*5% -> 1.052540433
B255: Belo Horizonte, 17 de abril de 2023. | L255: Operador:
L256: Verificador: | N256: DLFF
B258: Nota: A repetição deste ensaio estará sujeita a aprovação prévia e por escrito da contratante.
H259: CLASSIFICAÇÃO USO INTERNO | L259: PROJETO DE PAVIMENTAÇÃO
L261: BELAGIO
B262: PREFEITURA MUNICIPAL DE NOVA LIMA | L262: Nº CLIENTE | R262: PÁGINA
B263: PROJETO DE INFRAESTRUTURA | L263: - | R263: 5/ 6
B264: ENSAIOS GEOTÉCNICOS DE LABORATÓRIO | L264: Nº (CONTRATADA) | R264: REV.
B265: RELATÓRIO TÉCNICO | L265: SND-PNL-030-RTE-04723-REVA | R265: A
B267: ENSAIO DE COMPACTAÇÃO ABNT 7182
B269: Cliente: | C269: Prefeitura Municipal de Nova Lima | L269: Registro: | O269: 0565
B270: Obra: | C270: Pavimentação | L270: Furo: | O270: ST-02
B271: Local: | C271: Belagio | L271: Profundidade: | O271: 0,15 a 0,60 m
B272: Material: | C272: Silte areno argiloso com pedregulho | L272: Coordenadas: | O272: 0
G273: EQUIPAMENTOS
B274: Balança (n°): | C274: BLÇ-001 | Q274: Estufa (n°): | R274: ET-002
B275: Cilindro: | C275: Grande | J275: Energia: | K275: Normal | Q275: Golpes (n°): | R275: 12
B276: Peso do Material (g): | F276: 6000 | I276: Umidade:
I277: CAPSULA (n°): | N277: 5 | P277: 9 | R277: 7
I278: CAPSULA + SOLO ÚMIDO (g): | N278: 335.68 | P278: 332.42 | R278: 352.87
B279: Peso do Material Seco (g): | F279: 5658.54084 | I279: CAPSULA + SOLO SECO (g): | N279: 320.58 | P279: 318.44 | R279: 338.47
... 66 more rows

Sheet SCS - Dispersão (hidden)
H4: CLASSIFICAÇÃO USO INTERNO | L4: =CARACTERIZAÇÃO!$L$4 -> PROJETO DE PAVIMENTAÇÃO
L6: =CARACTERIZAÇÃO!$L$6 -> BELAGIO
B7: =CARACTERIZAÇÃO!$B$7 -> PREFEITURA MUNICIPAL DE NOVA LIMA | L7: Nº VALE | R7: PÁGINA
B8: =CARACTERIZAÇÃO!$B$8 -> PROJETO DE INFRAESTRUTURA | L8: =CARACTERIZAÇÃO!$L$8 -> - | R8: 5/ 6
B9: =CARACTERIZAÇÃO!$B$9 -> ENSAIOS GEOTÉCNICOS DE LABORATÓRIO | L9: Nº (CONTRATADA) | R9: REV. | T9: =(100/(100+D29)) -> 
B10: =CARACTERIZAÇÃO!$B$10 -> RELATÓRIO TÉCNICO | L10: =CARACTERIZAÇÃO!$L$10 -> SND-PNL-030-RTE-04723-REVA | R10: =CARACTERIZAÇÃO!$R$10 -> A
B12: ENSAIO DE DISPERSÃO - SCS ABNT NBR 13602/ 2020
B14: Cliente: | C14: =VLOOKUP(O14,'[1]Livro de Registro'!$A:$B,2,0) -> Prefeitura Municipal de Nova Lima | L14: Registro: | O14: =CARACTERIZAÇÃO!O14 -> 0565
B15: Obra: | C15: =VLOOKUP(O14,'[1]Livro de Registro'!$A:$C,3,0) -> Pavimentação | L15: Furo: | O15: =VLOOKUP(O14,'[1]Livro de Registro'!$A:$G,7,0) -> ST-02
B16: Local: | C16: =VLOOKUP(O14,'[1]Livro de Registro'!$A:$D,4,0) -> Belagio | L16: Profundidade: | O16: =VLOOKUP(O14,'[1]Livro de Registro'!$A:$I,9,0) -> 0,15 a 0,60 m
B17: Material: | L17: Coordenadas: | O17: =VLOOKUP(O14,'[1]Livro de Registro'!$A:$H,8,0) -> 0
G18: EQUIPAMENTOS
B19: Balança (n°): | C19: =CARACTERIZAÇÃO!$C$19 -> BLÇ-001 | I19: Estufa (n°): | J19: =CARACTERIZAÇÃO!$J$19 -> ET-002 | Q19: Termômetro (n°): | R19: =CARACTERIZAÇÃO!$R$19 -> TRM-007
B20: TEOR DE UMIDADE ABNT 6457 | J20: PENEIRAMENTO GRAÚDO ABNT 7181
B22: CAPSULA (n°): | J22: RECIPIENTE (n°): | R22: =CARACTERIZAÇÃO!R22 -> G-27
B23: CAPSULA + SOLO ÚMIDO (g):
B24: CAPSULA + SOLO SECO (g): | J24: PENEIRA (n°): | L24: ABERTURA (mm): | N24: PESO RETIDO (g): | P24: PESO RETIDO ACUMULADO (g): | R24: % DA AMOSTRA QUE PASSA (%):
B25: TARA DA CAPSULA (g): | D25: =VLOOKUP(D22,TABELAS!$A:$B,2,FALSE) ->  | F25: =VLOOKUP(F22,TABELAS!$A:$B,2,FALSE) ->  | H25: =VLOOKUP(H22,TABELAS!$A:$B,2,FALSE) -> 
B26: PESO DE ÁGUA (g): | D26: =D23-D24 -> 0 | F26: =F23-F24 -> 0 | H26: =H23-H24 -> 0 | J26: 2" | L26: 50 | N26: =CARACTERIZAÇÃO!N26 -> 0 | P26: =N26 -> 0 | R26: =100-(P26/$H$34*100) -> 
B27: PESO DE SOLO SECO (g): | D27: =D24-D25 ->  | F27: =F24-F25 ->  | H27: =H24-H25 ->  | J27: 1 1/2" | L27: 38 | N27: =CARACTERIZAÇÃO!N27 -> 0 | P27: =N27+P26 -> 0 | R27: =100-(P27/$H$34*100) -> 
B28: TEOR DE UMIDADE (%): | D28: =(D26/D27)*100 ->  | F28: =(F26/F27)*100 ->  | H28: =(H26/H27)*100 ->  | J28: 1" | L28: 25 | N28: =CARACTERIZAÇÃO!N28 -> 141.1 | P28: 141.1
B29: TEOR MÉDIO (%): | D29: =AVERAGE(D28:I28) ->  | J29: 3/4" | L29: 19 | N29: =CARACTERIZAÇÃO!N29 -> 103.78 | P29: 244.88
B30: TEMPERATURA (°C): | J30: 3/8" | L30: 9.5 | N30: =CARACTERIZAÇÃO!N30 -> 298.8 | P30: 543.68
B31: AMOSTRA TOTAL | J31: 4 | L31: 4.8 | N31: =CARACTERIZAÇÃO!N31 -> 262.17 | P31: 805.85
J32: 10 | L32: 2 | N32: =CARACTERIZAÇÃO!N32 -> 270.83 | P32: 1076.68
B33: AMOSTRA TOTAL ÚMIDA (g): | H33: =CARACTERIZAÇÃO!H33 -> 3772 | J33: PENEIRAMENTO FINO ABNT 7181
B34: AMOSTRA TOTAL SECA (g): | H34: =H35+H36 -> 
B35: RETIDO NA PENEIRA (2mm) n°10 (g): | H35: =P32 -> 1076.68 | J35: RECIPIENTE (n°):
B36: PASSADO NA PENEIRA (2mm) n°10 (g): | H36: =(H33-H35)*T9 -> 
B37: SEDIMENTAÇÃO ABNT NBR 13602:2020 | J37: PENEIRA (n°): | L37: ABERTURA (mm): | N37: PESO RETIDO (g): | P37: PESO RETIDO ACUMULADO (g): | R37: % DA AMOSTRA QUE PASSA (%):
B39: DEFLOCULANTE: | H39: ÁGUA | J39: 16 | L39: 1.2 | P39: =N39 -> 0 | R39: =(($H$44-P39)/$H$44*$R$32) -> 
B40: PICNÔMETRO (n°): | J40: 30 | L40: 0.6 | P40: =N40+P39 -> 0 | R40: =(($H$44-P40)/$H$44*$R$32) -> 
B41: DENSIMETRO (n°): | J41: 40 | L41: 0.42 | P41: 0
B42: PROVETA (n°): | J42: 50 | L42: 0.3 | P42: 0
B43: PESO AMOSTRA ÚMIDA (g): | J43: 60 | L43: 0.25 | P43: 0
B44: PESO AMOSTRA SECA (g): | H44: =H43/(100+D29)*100 ->  | J44: 100 | L44: 0.15 | P44: 0 | T44: 15
B45: DENSIDADE DOS GRÃOS d (g/cm3): | H45: =CARACTERIZAÇÃO!R116 -> 2.889653089 | J45: 200 | L45: 0.075 | P45: 0 | T45: 30
B46: Hora | D46: Dt | F46: Leitura - L | H46: T (oC) | J46: Diâmetro dos Grãos (mm) | L46: Correção - CI | N46: Leit. Corrigida - Lc | Q46: (%) Finos Totais | T46: 60
D47: 15" | J47: =IF($H$41=1,(SQRT(1800*VLOOKUP(H47,TABELAS!$M:$N,2,FALSE)/($H$45-1))*(SQRT(VLOOKUP(F47,CALCULOS!$F:$L,2,FALSE)/T44))),IF($H$41=2,(SQRT(1800*VLOOKUP(H47,TABELAS!$M:$N,2,FALSE)/($H$45-1))*(SQRT(VLOOKUP(F47,CALCULOS!$AJ$3:$AL$224,2,FALSE)/T44))),IF($H$41=3,(SQRT(1800*VLOOKUP(H47,TABELAS!$M:$N,2,FALSE)/($H$45-1))*(SQRT(VLOOKUP(F47,CALCULOS!$F:$L,6,FALSE)/T44)))))) -> FALSE | L47: =(IF(AND(COUNTBLANK(H47)=0,COUNTBLANK($H$41)=0),IF($H$41=1,VLOOKUP(H47,CALCULOS!$A:$D,2,FALSE),IF($H$41=2,VLOOKUP(H47,CALCULOS!$AM$3:$AN$274,2,FALSE),IF($H$41=3,VLOOKUP(H47,CALCULOS!$A:$D,4,FALSE))))," ")) ->  | N47: =ROUND(F47-1000+L47+1000,2) ->  | Q47: =ROUND(($H$45/($H$45-1))*$R$32*((N47-1000)/($H$44)),1) ->  | T47: 120
B48: =$B$47+(T45/86400) -> 00:00:30 | D48: 30" | J48: =IF($H$41=1,(SQRT(1800*VLOOKUP(H48,TABELAS!$M:$N,2,FALSE)/($H$45-1))*(SQRT(VLOOKUP(F48,CALCULOS!$F:$L,2,FALSE)/T45))),IF($H$41=2,(SQRT(1800*VLOOKUP(H48,TABELAS!$M:$N,2,FALSE)/($H$45-1))*(SQRT(VLOOKUP(F48,CALCULOS!$AJ$3:$AL$224,2,FALSE)/T45))),IF($H$41=3,(SQRT(1800*VLOOKUP(H48,TABELAS!$M:$N,2,FALSE)/($H$45-1))*(SQRT(VLOOKUP(F48,CALCULOS!$F:$L,6,FALSE)/T45)))))) -> FALSE | L48: =(IF(AND(COUNTBLANK(H48)=0,COUNTBLANK($H$41)=0),IF($H$41=1,VLOOKUP(H48,CALCULOS!$A:$D,2,FALSE),IF($H$41=2,VLOOKUP(H48,CALCULOS!$AM$3:$AN$274,2,FALSE),IF($H$41=3,VLOOKUP(H48,CALCULOS!$A:$D,4,FALSE))))," ")) ->  | N48: =ROUND(F48-1000+L48+1000,2) ->  | Q48: =ROUND(($H$45/($H$45-1))*$R$32*((N48-1000)/($H$44)),1) ->  | T48: 240
B49: =$B$47+(T46/86400) -> 00:01:00 | D49: 60" | J49: =IF($H$41=1,(SQRT(1800*VLOOKUP(H49,TABELAS!$M:$N,2,FALSE)/($H$45-1))*(SQRT(VLOOKUP(F49,CALCULOS!$F:$L,2,FALSE)/T46))),IF($H$41=2,(SQRT(1800*VLOOKUP(H49,TABELAS!$M:$N,2,FALSE)/($H$45-1))*(SQRT(VLOOKUP(F49,CALCULOS!$AJ$3:$AL$224,2,FALSE)/T46))),IF($H$41=3,(SQRT(1800*VLOOKUP(H49,TABELAS!$M:$N,2,FALSE)/($H$45-1))*(SQRT(VLOOKUP(F49,CALCULOS!$F:$L,6,FALSE)/T46)))))) -> FALSE | L49: =(IF(AND(COUNTBLANK(H49)=0,COUNTBLANK($H$41)=0),IF($H$41=1,VLOOKUP(H49,CALCULOS!$A:$D,2,FALSE),IF($H$41=2,VLOOKUP(H49,CALCULOS!$AM$3:$AN$274,2,FALSE),IF($H$41=3,VLOOKUP(H49,CALCULOS!$A:$D,4,FALSE))))," ")) ->  | T49: 480
B50: 00:02:00 | D50: 2' | J50: =IF($H$41=1,(SQRT(1800*VLOOKUP(H50,TABELAS!$M:$N,2,FALSE)/($H$45-1))*(SQRT(VLOOKUP(F50,CALCULOS!$F:$L,2,FALSE)/T47))),IF($H$41=2,(SQRT(1800*VLOOKUP(H50,TABELAS!$M:$N,2,FALSE)/($H$45-1))*(SQRT(VLOOKUP(F50,CALCULOS!$AJ$3:$AL$224,2,FALSE)/T47))),IF($H$41=3,(SQRT(1800*VLOOKUP(H50,TABELAS!$M:$N,2,FALSE)/($H$45-1))*(SQRT(VLOOKUP(F50,CALCULOS!$F:$L,6,FALSE)/T47)))))) -> FALSE | L50: =(IF(AND(COUNTBLANK(H50)=0,COUNTBLANK($H$41)=0),IF($H$41=1,VLOOKUP(H50,CALCULOS!$A:$D,2,FALSE),IF($H$41=2,VLOOKUP(H50,CALCULOS!$AM$3:$AN$274,2,FALSE),IF($H$41=3,VLOOKUP(H50,CALCULOS!$A:$D,4,FALSE))))," ")) ->  | T50: 900
B51: 00:04:00 | D51: 4' | J51: =IF($H$41=1,(SQRT(1800*VLOOKUP(H51,TABELAS!$M:$N,2,FALSE)/($H$45-1))*(SQRT(VLOOKUP(F51,CALCULOS!$F:$L,2,FALSE)/T48))),IF($H$41=2,(SQRT(1800*VLOOKUP(H51,TABELAS!$M:$N,2,FALSE)/($H$45-1))*(SQRT(VLOOKUP(F51,CALCULOS!$AJ$3:$AL$224,3,FALSE)/T48))),IF($H$41=3,(SQRT(1800*VLOOKUP(H51,TABELAS!$M:$N,2,FALSE)/($H$45-1))*(SQRT(VLOOKUP(F51,CALCULOS!$F:$L,7,FALSE)/T48)))))) -> FALSE | L51: =(IF(AND(COUNTBLANK(H51)=0,COUNTBLANK($H$41)=0),IF($H$41=1,VLOOKUP(H51,CALCULOS!$A:$D,2,FALSE),IF($H$41=2,VLOOKUP(H51,CALCULOS!$AM$3:$AN$274,2,FALSE),IF($H$41=3,VLOOKUP(H51,CALCULOS!$A:$D,4,FALSE))))," ")) ->  | T51: 1800
B52: 00:08:00 | D52: 8' | J52: =IF($H$41=1,(SQRT(1800*VLOOKUP(H52,TABELAS!$M:$N,2,FALSE)/($H$45-1))*(SQRT(VLOOKUP(F52,CALCULOS!$F:$L,2,FALSE)/T49))),IF($H$41=2,(SQRT(1800*VLOOKUP(H52,TABELAS!$M:$N,2,FALSE)/($H$45-1))*(SQRT(VLOOKUP(F52,CALCULOS!$AJ$3:$AL$224,3,FALSE)/T49))),IF($H$41=3,(SQRT(1800*VLOOKUP(H52,TABELAS!$M:$N,2,FALSE)/($H$45-1))*(SQRT(VLOOKUP(F52,CALCULOS!$F:$L,7,FALSE)/T49)))))) -> FALSE | L52: =(IF(AND(COUNTBLANK(H52)=0,COUNTBLANK($H$41)=0),IF($H$41=1,VLOOKUP(H52,CALCULOS!$A:$D,2,FALSE),IF($H$41=2,VLOOKUP(H52,CALCULOS!$AM$3:$AN$274,2,FALSE),IF($H$41=3,VLOOKUP(H52,CALCULOS!$A:$D,4,FALSE))))," ")) ->  | T52: 3600
B53: 00:15:00 | D53: 15' | J53: =IF($H$41=1,(SQRT(1800*VLOOKUP(H53,TABELAS!$M:$N,2,FALSE)/($H$45-1))*(SQRT(VLOOKUP(F53,CALCULOS!$F:$L,2,FALSE)/T50))),IF($H$41=2,(SQRT(1800*VLOOKUP(H53,TABELAS!$M:$N,2,FALSE)/($H$45-1))*(SQRT(VLOOKUP(F53,CALCULOS!$AJ$3:$AL$224,3,FALSE)/T50))),IF($H$41=3,(SQRT(1800*VLOOKUP(H53,TABELAS!$M:$N,2,FALSE)/($H$45-1))*(SQRT(VLOOKUP(F53,CALCULOS!$F:$L,7,FALSE)/T50)))))) -> FALSE | L53: =(IF(AND(COUNTBLANK(H53)=0,COUNTBLANK($H$41)=0),IF($H$41=1,VLOOKUP(H53,CALCULOS!$A:$D,2,FALSE),IF($H$41=2,VLOOKUP(H53,CALCULOS!$AM$3:$AN$274,2,FALSE),IF($H$41=3,VLOOKUP(H53,CALCULOS!$A:$D,4,FALSE))))," ")) ->  | T53: 7200
B54: 00:30:00 | D54: 30' | J54: =IF($H$41=1,(SQRT(1800*VLOOKUP(H54,TABELAS!$M:$N,2,FALSE)/($H$45-1))*(SQRT(VLOOKUP(F54,CALCULOS!$F:$L,2,FALSE)/T51))),IF($H$41=2,(SQRT(1800*VLOOKUP(H54,TABELAS!$M:$N,2,FALSE)/($H$45-1))*(SQRT(VLOOKUP(F54,CALCULOS!$AJ$3:$AL$224,3,FALSE)/T51))),IF($H$41=3,(SQRT(1800*VLOOKUP(H54,TABELAS!$M:$N,2,FALSE)/($H$45-1))*(SQRT(VLOOKUP(F54,CALCULOS!$F:$L,7,FALSE)/T51)))))) -> FALSE | L54: =(IF(AND(COUNTBLANK(H54)=0,COUNTBLANK($H$41)=0),IF($H$41=1,VLOOKUP(H54,CALCULOS!$A:$D,2,FALSE),IF($H$41=2,VLOOKUP(H54,CALCULOS!$AM$3:$AN$274,2,FALSE),IF($H$41=3,VLOOKUP(H54,CALCULOS!$A:$D,4,FALSE))))," ")) ->  | T54: 14400
B55: 01:00:00 | D55: 1h | J55: =IF($H$41=1,(SQRT(1800*VLOOKUP(H55,TABELAS!$M:$N,2,FALSE)/($H$45-1))*(SQRT(VLOOKUP(F55,CALCULOS!$F:$L,2,FALSE)/T52))),IF($H$41=2,(SQRT(1800*VLOOKUP(H55,TABELAS!$M:$N,2,FALSE)/($H$45-1))*(SQRT(VLOOKUP(F55,CALCULOS!$AJ$3:$AL$224,3,FALSE)/T52))),IF($H$41=3,(SQRT(1800*VLOOKUP(H55,TABELAS!$M:$N,2,FALSE)/($H$45-1))*(SQRT(VLOOKUP(F55,CALCULOS!$F:$L,7,FALSE)/T52)))))) -> FALSE | L55: =(IF(AND(COUNTBLANK(H55)=0,COUNTBLANK($H$41)=0),IF($H$41=1,VLOOKUP(H55,CALCULOS!$A:$D,2,FALSE),IF($H$41=2,VLOOKUP(H55,CALCULOS!$AM$3:$AN$274,2,FALSE),IF($H$41=3,VLOOKUP(H55,CALCULOS!$A:$D,4,FALSE))))," ")) ->  | T55: 28800
B56: 02:00:00 | D56: 2h | J56: =IF($H$41=1,(SQRT(1800*VLOOKUP(H56,TABELAS!$M:$N,2,FALSE)/($H$45-1))*(SQRT(VLOOKUP(F56,CALCULOS!$F:$L,2,FALSE)/T53))),IF($H$41=2,(SQRT(1800*VLOOKUP(H56,TABELAS!$M:$N,2,FALSE)/($H$45-1))*(SQRT(VLOOKUP(F56,CALCULOS!$AJ$3:$AL$224,3,FALSE)/T53))),IF($H$41=3,(SQRT(1800*VLOOKUP(H56,TABELAS!$M:$N,2,FALSE)/($H$45-1))*(SQRT(VLOOKUP(F56,CALCULOS!$F:$L,7,FALSE)/T53)))))) -> FALSE | L56: =(IF(AND(COUNTBLANK(H56)=0,COUNTBLANK($H$41)=0),IF($H$41=1,VLOOKUP(H56,CALCULOS!$A:$D,2,FALSE),IF($H$41=2,VLOOKUP(H56,CALCULOS!$AM$3:$AN$274,2,FALSE),IF($H$41=3,VLOOKUP(H56,CALCULOS!$A:$D,4,FALSE))))," ")) ->  | T56: 86400
B57: 04:00:00 | D57: 4h | J57: =IF($H$41=1,(SQRT(1800*VLOOKUP(H57,TABELAS!$M:$N,2,FALSE)/($H$45-1))*(SQRT(VLOOKUP(F57,CALCULOS!$F:$L,2,FALSE)/T54))),IF($H$41=2,(SQRT(1800*VLOOKUP(H57,TABELAS!$M:$N,2,FALSE)/($H$45-1))*(SQRT(VLOOKUP(F57,CALCULOS!$AJ$3:$AL$224,3,FALSE)/T54))),IF($H$41=3,(SQRT(1800*VLOOKUP(H57,TABELAS!$M:$N,2,FALSE)/($H$45-1))*(SQRT(VLOOKUP(F57,CALCULOS!$F:$L,7,FALSE)/T54)))))) -> FALSE | L57: =(IF(AND(COUNTBLANK(H57)=0,COUNTBLANK($H$41)=0),IF($H$41=1,VLOOKUP(H57,CALCULOS!$A:$D,2,FALSE),IF($H$41=2,VLOOKUP(H57,CALCULOS!$AM$3:$AN$274,2,FALSE),IF($H$41=3,VLOOKUP(H57,CALCULOS!$A:$D,4,FALSE))))," ")) -> 
B58: 08:00:00 | D58: 8h | J58: =IF($H$41=1,(SQRT(1800*VLOOKUP(H58,TABELAS!$M:$N,2,FALSE)/($H$45-1))*(SQRT(VLOOKUP(F58,CALCULOS!$F:$L,2,FALSE)/T55))),IF($H$41=2,(SQRT(1800*VLOOKUP(H58,TABELAS!$M:$N,2,FALSE)/($H$45-1))*(SQRT(VLOOKUP(F58,CALCULOS!$AJ$3:$AL$224,3,FALSE)/T55))),IF($H$41=3,(SQRT(1800*VLOOKUP(H58,TABELAS!$M:$N,2,FALSE)/($H$45-1))*(SQRT(VLOOKUP(F58,CALCULOS!$F:$L,7,FALSE)/T55)))))) -> FALSE | L58: =(IF(AND(COUNTBLANK(H58)=0,COUNTBLANK($H$41)=0),IF($H$41=1,VLOOKUP(H58,CALCULOS!$A:$D,2,FALSE),IF($H$41=2,VLOOKUP(H58,CALCULOS!$AM$3:$AN$274,2,FALSE),IF($H$41=3,VLOOKUP(H58,CALCULOS!$A:$D,4,FALSE))))," ")) -> 
B59: 1 | D59: 24h | J59: =IF($H$41=1,(SQRT(1800*VLOOKUP(H59,TABELAS!$M:$N,2,FALSE)/($H$45-1))*(SQRT(VLOOKUP(F59,CALCULOS!$F:$L,2,FALSE)/T56))),IF($H$41=2,(SQRT(1800*VLOOKUP(H59,TABELAS!$M:$N,2,FALSE)/($H$45-1))*(SQRT(VLOOKUP(F59,CALCULOS!$AJ$3:$AL$224,3,FALSE)/T56))),IF($H$41=3,(SQRT(1800*VLOOKUP(H59,TABELAS!$M:$N,2,FALSE)/($H$45-1))*(SQRT(VLOOKUP(F59,CALCULOS!$F:$L,7,FALSE)/T56)))))) -> FALSE | L59: =(IF(AND(COUNTBLANK(H59)=0,COUNTBLANK($H$41)=0),IF($H$41=1,VLOOKUP(H59,CALCULOS!$A:$D,2,FALSE),IF($H$41=2,VLOOKUP(H59,CALCULOS!$AM$3:$AN$274,2,FALSE),IF($H$41=3,VLOOKUP(H59,CALCULOS!$A:$D,4,FALSE))))," ")) -> 
B63: =CARACTERIZAÇÃO!B63 -> Belo Horizonte, 17 de abril de 2023. | L63: Operador:
B64: Nova Lima - Jardim Canadá | L64: Verificador: | N64: =$N$64 -> DLFF
B66: Nota: A repetição deste ensaio estará sujeita a aprovação prévia e por escrito da contratante.
H67: CLASSIFICAÇÃO USO INTERNO | L67: =$L$4 -> PROJETO DE PAVIMENTAÇÃO
L69: =$L$6 -> BELAGIO
B70: =$B$7 -> PREFEITURA MUNICIPAL DE NOVA LIMA | L70: Nº VALE | R70: PÁGINA
B71: =$B$8 -> PROJETO DE INFRAESTRUTURA | L71: =$L$8 -> - | R71: 6/ 6
B72: =$B$9 -> ENSAIOS GEOTÉCNICOS DE LABORATÓRIO | L72: Nº (CONTRATADA) | R72: REV.
B73: =$B$10 -> RELATÓRIO TÉCNICO | L73: =$L$10 -> SND-PNL-030-RTE-04723-REVA | R73: =$R$10 -> A
B75: ENSAIO DE DISPERSÃO - SCS ABNT NBR 13602/ 2020
B77: =B14 -> Cliente: | C77: Prefeitura Municipal de Nova Lima | L77: Registro: | O77: =O14 -> 0565
B78: Obra: | C78: Pavimentação | L78: Furo: | O78: =O15 -> ST-02
B79: Local: | C79: Belagio | L79: Profundidade: | O79: =O16 -> 0,15 a 0,60 m | U79: 2" | V79: 50 | X79: =100-R26 -> 
B80: Material: | C80: 0 | L80: Coordenadas: | O80: =O17 -> 0 | U80: 1 1/2" | V80: 38 | X80: =R26-R27 ->  | Y80: =se -> 
G81: EQUIPAMENTOS
B82: Balança (n°): | C82: =C19 -> BLÇ-001 | I82: Estufa (n°): | J82: =J19 -> ET-002 | Q82: Termômetro (n°): | R82: =R19 -> TRM-007
U83: 1" | V83: 25 | X83: =R27-R28 ->  | AH83: =L26 -> 50 | AI83: =R26 -> 
U84: 3/4" | V84: 19 | X84: =R28-R29 ->  | AH84: 38
U85: 3/8" | V85: 9.5 | X85: =R29-R30 ->  | AH85: 25
U86: No 4 | V86: 4.8 | X86: =R30-R31 ->  | AH86: 19
U87: No 10 | V87: 2 | X87: =R31-R32 ->  | AH87: 9.5
AH88: 4.8
U89: 16 | V89: 1.2 | X89: =R32-R39 ->  | AH89: 2
U90: 30 | V90: 0.6 | X90: =R39-R40 ->  | AH90: =L39 -> 1.2 | AI90: =R39 -> 
U91: 40 | V91: 0.42 | AH91: 0.6
U92: 50 | V92: 0.3 | AH92: 0.42
U93: 60 | V93: 0.25 | AH93: 0.3
U94: 100 | V94: 0.15 | AH94: 0.25
U95: 200 | V95: 0.075 | AH95: 0.15
AH96: 0.075
U97: 1 | V97: =J47 -> FALSE | X97: =IF(V97>0.06,R45-Q47,"") ->  | Y97: =IF(AND(V97<=0.06,V97>0.002),R45-Q47, " ") ->  | Z97: =IF(V97<=0.002,R45-Q47, "") ->  | AH97: =J47 -> FALSE | AI97: =Q47 -> 
U98: 2 | V98: FALSE | X98: =IF(V98>0.06,Q47-Q48,"") ->  | Y98: =IF(AND(V98<=0.06,V98>0.002),Q47-Q48, " ") ->  | Z98: =IF(V98<=0.002,Q47-Q48, "") ->  | AH98: FALSE
U99: 3 | V99: FALSE | AH99: FALSE
U100: 4 | V100: FALSE | AH100: FALSE
B101: Argila | E101: =SUM(Z97:Z109) -> 0 | I101: % | J101: Þ | O101: f < 0,002 mm | U101: 5 | V101: FALSE | AH101: FALSE
B102: Silte | E102: =SUM(Y97:Y109) -> 0 | I102: % | J102: Þ | O102: 0,002 mm < f < 0,06 mm | U102: 6 | V102: FALSE | AH102: FALSE
B103: Areia Fina | E103: =SUM(X94:X109) ->  | I103: % | J103: Þ | O103: 0,06 mm < f < 0,2 mm | U103: 7 | V103: FALSE | AH103: FALSE
B104: Areia Média | E104: =SUM(X90:X93) ->  | I104: % | J104: Þ | O104: 0,2 mm < f < 0,6 mm | U104: 8 | V104: FALSE | AH104: FALSE
B105: Areia Grossa | E105: =SUM(X87:X89) ->  | I105: % | J105: Þ | O105: 0,6 mm < f < 2 mm | U105: 9 | V105: FALSE | AH105: FALSE
B106: Pedregulho Fino | E106: =SUM(X86) ->  | I106: % | J106: Þ | O106: 2 mm < f < 6 mm | U106: 10 | V106: FALSE | AH106: FALSE
B107: Pedregulho Médio | E107: =SUM(X84:X85) ->  | I107: % | J107: Þ | O107: 6 mm < f < 20 mm | U107: 11 | V107: FALSE | AH107: FALSE
B108: Pedregulho Grosso | E108: =SUM(X79:X83) ->  | I108: % | J108: Þ | O108: f > 20 mm | U108: 12 | V108: FALSE | AH108: FALSE
B109: Total | E109: =SUM(E101:G108) ->  | U109: 13 | V109: FALSE | X109: =IF(V109>0.06,(Q58-Q59)+Q59,"") ->  | Y109: =IF(AND(V109<=0.06,V109>0.002),(Q58-Q59)+Q59, " ") ->  | Z109: =IF(V109<=0.002,(Q58-Q59)+Q59, "") ->  | AH109: FALSE
B110: Argila = | E110: =E101 -> 0 | J110: Areia = | O110: =SUM(E103:G105) -> 
B111: Silte = | E111: =E102 -> 0 | J111: Pedregulho = | O111: =E108+E107+E106 ->  | W111: =SUM(X79:X95) ->  | Y111: =SUM(X97:X109,Y97:Y109,Z97:Z109) -> 
B112: ENSAIO DE DISPERSÃO - SCS ABNT NBR 13602/ 2020
B114: Porcentagem de dispersão [%]: | H114: =(E101/CARACTERIZAÇÃO!E101)*100 -> 0
B128: =B63 -> Belo Horizonte, 17 de abril de 2023. | L128: Operador:
B129: =B64 -> Nova Lima - Jardim Canadá | L129: Verificador: | N129: =N64 -> ION
B131: Nota: A repetição deste ensaio estará sujeita a aprovação prévia e por escrito da contratante.

Sheet HRB_SUCS (hidden)
A3: EXÉRCITO BRASILEIRO
A4: INSTITUTO MILITAR DE ENGENHARIA
A5: DEPARTAMENTO DE ENGENHARIA DE FORTIFICAÇÃO E CONSTRUÇÃO
A8: CLASSIFICAÇÃO DE SOLOS
A16: CARACTERIZAÇÃO DO SOLO
A19: LIMITES | G19: GRANULOMETRIA
A20: Limite Liquidez (LL) | C20: =IF(CARACTERIZAÇÃO!D118="NL",0,CARACTERIZAÇÃO!D118) -> 39.2
A21: LimitePlasticidade (LP) | C21: =IF(CARACTERIZAÇÃO!D119="NP",0,CARACTERIZAÇÃO!D119) -> 25.51170642 | G21: % Passa Peneira 4 (4,8mm) | I21: =CARACTERIZAÇÃO!N118 -> 78.62627297
A22: Índice de Plasticidade (IP) | C22: =(C20-C21) -> 13.68829358 | G22: % Passa Peneira 10 (2,0mm) | I22: =CARACTERIZAÇÃO!N119 -> 71.44299259
A23: Variável (a) | B23: =IF(IF((I24-35)<0,0,(I24-35))>40,40,IF((I24-35)<0,0,(I24-35))) -> 21.60228353 | D23: 0 < a < 40 | G23: % Passa Peneira 40 (0,42mm) | I23: =CARACTERIZAÇÃO!N120 -> 65.04331956
A24: Variável (b) | B24: =IF(IF((I24-15)<0,0,(I24-15))>40,40,IF((I24-15)<0,0,(I24-15))) -> 40 | D24: 0 < b < 40 | G24: % Passa Peneira 200 (0,075mm) | I24: =CARACTERIZAÇÃO!R118 -> 56.60228353
A25: Variável (c) | B25: =IF(IF((C20-40)<0,0,(C20-40))>20,20,IF((C20-40)<0,0,(C20-40))) -> 0 | D25: 0 < c < 20 | G25: Índice de Grupo (IG) | I25: =IF(((0.2)*B23)+((0.005)*(B23)*(B25))+((0.01)*(B24)*(B26))<0,0,((0.2)*B23)+((0.005)*(B23)*(B25))+((0.01)*(B24)*(B26))) -> 5.795774138
A26: Variável (d) | B26: =IF(IF((C22-10)<0,0,(C22-10))>20,20,IF((C22-10)<0,0,(C22-10))) -> 3.688293582 | D26: 0 < d < 20
A27: CLASSIFICAÇÃO | G27: ='HRB_SUCS(Dados)'!E17 -> APAGUE OS VALORES DE (D10;D30;D60)
G28: d10
A29: CLASSIFICAÇÃO "HRB" | C29: =C32 -> A-6 | D29: =D32 ->  | G29: d30
A30: CLASSIFICAÇÃO "SUCS" | C30: ='HRB_SUCS(Dados)'!C21 -> ML | G30: d60
C32: =IF(C37="NP","NP",IF(B42=TRUE,"A-5",IF(C42=TRUE,"A-6",IF(D42=TRUE,"A-7-5",IF(E42=TRUE,"A-7-6"," "))))) -> A-6 | D32: =IF(A37=TRUE,"A-1a",IF(B37=TRUE,"A-1b",IF(C37=TRUE,"A-3",IF(D37=TRUE,"A-2-4",IF(E37=TRUE,"A-2-5",IF(F37=TRUE,"A-2-6",IF(G37=TRUE,"A-2-7",IF(A42=TRUE,"A-4"," ")))))))) -> 
A37: =IF(C20<C21,"NP",AND(I26=0,C22<=6,I24<=15,I23<=30,I22<=50)) -> FALSE | B37: =IF(C20<C21,"NP",AND(I25=0,C22<=6,I24<=25,I23<=50)) -> FALSE | C37: =IF(C22<0,IF(D37="NP",IF(I25=0,IF(I24<=10,IF(I23>50,AND(I25=0,C22<0,I24<=10,I23>50),"NP"))))) -> FALSE | D37: =IF(C20<C21,"NP",AND(I25=0,C22<=10,C20<=40,I24<35)) -> FALSE | E37: =IF(C20<C21,"NP",AND(I25=0,C22<=10,C20>40,I24<=35)) -> FALSE | F37: =IF(C20<C21,"NP",AND(I25<=4,C22>10,C20<=40,I24<=35)) -> FALSE | G37: =IF(C20<C21,"NP",AND(I25<=4,C22>10,C20>40,I24<=35)) -> FALSE
A42: =IF(C20<C21,"NP",AND(I26<=8,C22<=10,C20<=40,I24>35)) -> FALSE | B42: =IF(C20<C21,"NP",AND(I25<=12,C22<=10,C20>40,I24>35)) -> FALSE | C42: =IF(C20<C21,"NP",AND(I25<=16,C22>10,C20<=40,I24>35)) -> TRUE | D42: =IF(C20<C21,"NP",AND(I25<=20,C22>10,C20>40,I24>35,C22<=C20-30)) -> FALSE | E42: =IF(C20<C21,"NP",AND(I25<=20,C22>10,C20>40,I24>35,C22>C20-30)) -> FALSE

Sheet HRB_SUCS(Dados) (hidden)
A8: CLASSIFICAÇÃO DE SOLOS - SUCS
A12: Limite Liquidez (LL) | C12: =HRB_SUCS!C20 -> 39.2 | E12: % Passa Peneira 4 (4,8mm) | I12: =HRB_SUCS!I21 -> 78.62627297
A13: Limite Plasticidade(LP) | C13: =HRB_SUCS!C21 -> 25.51170642 | E13: % Passa Peneira 10 (2,0mm) | I13: =HRB_SUCS!I22 -> 71.44299259
A14: Índice de Plasticidade(IP) | C14: =HRB_SUCS!C22 -> 13.68829358 | E14: % Passa Peneira 40 (0,42mm) | I14: =HRB_SUCS!I23 -> 65.04331956
A15: Índice de Plasticidade da reta (IPreta) | C15: =0.73*(C12-20) -> 14.016 | E15: % Passa Peneira 200 (0,075mm) | I15: =HRB_SUCS!I24 -> 56.60228353
E17: =IF(I15>=0,IF(I15<=12,"ATUALIZE OS DADOS DE (D10;D30;D60)","APAGUE OS VALORES DE (D10;D30;D60)")) -> APAGUE OS VALORES DE (D10;D30;D60)
F19: D10 | H19: =HRB_SUCS!I28 -> 0
F20: D30 | H20: =HRB_SUCS!I29 -> 0
A21: CLASSIFICAÇÃO - SUCS | C21: =CONCATENATE(F32,F44,F56) -> ML | F21: D60 | H21: =HRB_SUCS!I30 -> 0
A22: =IF(C22="","N","S") -> N | F22: Cu | H22: =IF(HRB_SUCS!I30="",0,HRB_SUCS!I30/HRB_SUCS!I28) -> 0
A23: =IF(C23="","N","S") -> N | F23: Cc | H23: =IF(HRB_SUCS!I29="",0,POWER(HRB_SUCS!I29,2)/(HRB_SUCS!I28*HRB_SUCS!I30)) -> 0
A24: =IF(C24="","N","S") -> N
A25: =IF(C25="","N","S") -> N
A26: Granulação Grossa
B28: GW | C28: =IF(I15<=50,IF(I12<=50,IF(I15<5,IF(H22>4,IF(H23>1,IF(H23<3,"GW","FALSO")))))) -> FALSE
B29: GW-GM | C29: =IF(C37="GW-GM/GW-GC","FALSO",IF(I12<=50,IF(I15>=5,IF(I15<=12,IF(H22>4,IF(H23>1,IF(H23<3,IF(C14<=C15,"GW-GM","FALSO")))))))) -> FALSE | D29: =IF(C28="GW","GW",IF(C29="GW-GM","GW-GM",IF(C30="GW-GC","GW-GC",""))) -> 
B30: GW-GC | C30: =IF(C37="GW-GM/GW-GC","FALSO",IF(I12<=50,IF(I15>=5,IF(I15<=12,IF(H22>4,IF(H23>1,IF(H23<3,IF(C14>C15,"GW-GC","FALSO")))))))) -> FALSE
B31: GP | C31: =IF(I15<=50,IF(I12<=50,IF(I15<5,IF(H22>4,IF(H23>1,IF(H23>3,"GP","FALSO")))))) -> FALSE | F31: Resposta
B32: GP-GM | C32: =IF(C38="GP-GM/GP-GC","FALSO",IF(I12<=50,IF(I15>=5,IF(I15<=12,IF(H22>4,IF(H23>1,IF(H23>3,IF(C14<=C15,"GP-GM","FALSO")))))))) -> FALSE | D32: =IF(C31="GP","GP",IF(C32="GP-GM","GP-GM",IF(C33="GP-GC","GP-GC",""))) ->  | F32: =CONCATENATE(D29,D32,D35) -> 
B33: GP-GC | C33: =IF(C38="GP-GM/GP-GC","FALSO",IF(I12<=50,IF(I15>=5,IF(I15<=12,IF(H22>4,IF(H23>1,IF(H23>3,IF(C14>C15,"GP-GC","FALSO")))))))) -> FALSE
B34: GM | C34: =IF(I15<=50,IF(I12<=50,IF(I15>12,IF(C14<=C15,"GM","FALSO")))) -> FALSE
B35: GC | C35: =IF(I15<=50,IF(I12<=50,IF(I15>12,IF(C14>C15,IF(C14>7,"GC","FALSO"))))) -> FALSE | D35: =IF(C34="GM","GM",IF(C35="GC", "GC",IF(C36="GM-GC","GM-GC",IF(C37="GW-GM/GW-GC","GW-GM/GW-GC",IF(C38="GP-GM/GP-GC","GP-GM/GP-GC",""))))) -> 
B36: GM-GC | C36: =IF(I15<=50,IF(I12<=50,IF(I15>12,IF(C14>C15,IF(C14>=4,IF(C14<=7,"GM-GC","FALSO")))))) -> FALSE
B37: GW-GM / GW-GC | C37: =IF(I12<=50,IF(I15>=5,IF(I15<=12,IF(H22>4,IF(H23>1,IF(H23<3,IF(C14>=4,IF(C14<=7,"GW-GM/GW-GC","FALSO")))))))) -> FALSE
B38: GP-GM / GP-GC | C38: =IF(I12<=50,IF(I15>=5,IF(I15<=12,IF(H22>4,IF(H23>1,IF(H23>3,IF(C14>=4,IF(C14<=7,"GP-GM/GP-GC","FALSO")))))))) -> FALSE
B40: SW | C40: =IF(I15<=50,IF(I12>50,IF(I15<5,IF(H22>6,IF(H23>1,IF(H23<3,"SW","FALSO")))))) -> FALSE
B41: SW-SM | C41: =IF(C49="SW-SM/SW-SC","FALSO",IF(I12>50,IF(I15>=5,IF(I15<=12,IF(H22>6,IF(H23>1,IF(H23<3,IF(C14<=C15,"SW-SM","FALSO")))))))) -> FALSE | D41: =IF(C40="SW","SW",IF(C41="SW-SM","SW-SM",IF(C42="SW-SC","SW-SC",""))) -> 
B42: SW-SC | C42: =IF(C49="SW-SM/SW-SC","FALSO",IF(I12>50,IF(I15>=5,IF(I15<=12,IF(H22>6,IF(H23>1,IF(H23<3,IF(C14>C15,"SW-SC","FALSO")))))))) -> FALSE
B43: SP | C43: =IF(I15<=50,IF(I12>50,IF(I15<5,IF(H22>4,IF(H23>1,IF(H23>3,"SP","FALSO")))))) -> FALSE | F43: Resposta
B44: SP-SM | C44: =IF(C50="SP-SM/SP-SC","FALSO",IF(I12>50,IF(I15>=5,IF(I15<=12,IF(H22>6,IF(H23>1,IF(H23>3,IF(C14<=C15,"SP-SM","FALSO")))))))) -> FALSE | D44: =IF(C43="SP","SP",IF(C44="SP-SM","SP-SM",IF(C45="SP-SC","SP-SC",""))) ->  | F44: =CONCATENATE(D41,D44,D47) -> 
B45: SP-SC | C45: =IF(C50="SP-SM/SP-SC","FALSO",IF(I12>50,IF(I15>=5,IF(I15<=12,IF(H22>6,IF(H23>1,IF(H23>3,IF(C14>C15,"SP-SC","FALSO")))))))) -> FALSE
B46: SM | C46: =IF(I15<=50,IF(I12>50,IF(I15>12,IF(C14<=C15,"SM",IF(C12=0,IF(C14=0,"SM")))))) -> FALSE
B47: SC | C47: =IF(I15<=50,IF(I12>50,IF(I15>12,IF(C14>C15,IF(C14>7,"SC","FALSO"))))) -> FALSE | D47: =IF(C46="SM","SM",IF(C47="SC","SC",IF(C48="SM-SC","SM-SC",IF(C49="SW-SM/SW-SC","SW-SM/SW-SC",IF(C50="SP-SM/SP-SC","SP-SM/SP-SC",""))))) -> 
B48: SM-SC | C48: =IF(I15<=50,IF(I12>50,IF(I15>12,IF(C14>C15,IF(C14>=4,IF(C14<=7,"SM-SC","FALSO")))))) -> FALSE
B49: SW-SM / SW-SC | C49: =IF(I15>=5,IF(I15<=12,IF(H22>6,IF(H23>1,IF(H23<3,IF(C14>C15,IF(C14>=4,IF(C14<=7,"SW-SM/SW-SC","FALSO")))))))) -> FALSE
B50: SP-SM / SP-SC | C50: =IF(I15>=5,IF(I15<=12,IF(H22>6,IF(H23>1,IF(H23>3,IF(C14>C15,IF(C14>=4,IF(C14<=7,"SP-SM/SP-SC","FALSO")))))))) -> FALSE
A52: Granulação Fina
B54: ML | C54: =IF(I15>50,IF(C12<=50,IF(C14<C15,"ML","FALSO"))) -> ML
B55: ML-CL | C55: =IF(I15>50,IF(C12<=50,IF(C14>C15,IF(C14>=4,IF(C14<=7,"ML-CL","FALSO"))))) -> FALSE | F55: Resposta
B56: CL | C56: =IF(I15>50,IF(C12<=50,IF(C14>C15,IF(C14>7,"CL","FALSO")))) -> FALSE | F56: =IF(C54="ML","ML",IF(C55="ML-CL","ML-CL",IF(C56="CL","CL",IF(C57="MH","MH",IF(C58="CH","CH",""))))) -> ML
B57: MH | C57: =IF(I15>50,IF(C12>50,IF(C14<C15,"MH","FALSO"))) -> FALSE
B58: CH | C58: =IF(I15>50,IF(C12>50,IF(C14>C15,"CH","FALSO"))) -> FALSE

Sheet TABELAS (hidden)
A1: N° | B1: Capsula GPS | D1: Capsula CPN | E1: Peso Cilindro G | F1: Volume | G1: T | H1: Densidade A. T | I1: Volume Cilindro P | J1: Peso Cilindro P | M1: Temperatura (°C) | N1: Viscosidade (g.s/cm²) | P1: Energia | Q1: Cilindro | R1: Balança | S1: Estufa | T1: Termômetro | U1: Béquer/ Proveta/ Picnômetro | V1: Laboratorista | W1: Verificador
A2: 1 | B2: 11.8 | D2: 80.16 | E2: 4206 | F2: 2063 | G2: 15 | H2: 0.9991 | I2: 999 | J2: 2310 | M2: 11 | N2: 1.299e-05 | P2: Normal | Q2: Grande | R2: BLÇ-001 | S2: ET-001 | T2: TRM-001 | U2: 001 | V2: André | W2: DLFF
A3: 2 | B3: 19.76 | D3: 81.25 | E3: 4098 | F3: 2055 | G3: 15.1 | H3: 0.9991 | I3: 1000 | J3: 2268.16 | M3: 11.1 | N3: 1.2954e-05 | P3: Intermediário | Q3: Pequeno | R3: BLÇ-002 | S3: ET-002 | T3: TRM-002 | U3: 002 | V3: Antônio | W3: ION
A4: 3 | B4: 18.42 | D4: 80.89 | E4: 4130 | F4: 2074 | G4: 15.2 | H4: 0.9991 | I4: 994 | J4: 2340.64 | M4: 11.2 | N4: 1.2918e-05 | P4: Modificado | R4: BLÇ-003 | T4: TRM-003 | U4: 003 | V4: Anthony | W4: JGRCL
A5: 4 | B5: 18.74 | D5: 80.23 | E5: 4258 | F5: 2072 | G5: 15.3 | H5: 0.9991 | I5: 999 | J5: 2340.18 | M5: 11.3 | N5: 1.2882e-05 | P5: Golpes | R5: BLÇ-004 | T5: TRM-005 | U5: 004 | V5: Douglas
A6: 5 | B6: 18.64 | D6: 80.19 | E6: 4252 | F6: 2056 | G6: 15.4 | H6: 0.9991 | I6: 1002 | J6: 2362.96 | M6: 11.4 | N6: 1.2846e-05 | P6: 12 | R6: BLÇ-005 | T6: TRM-004 | U6: 005 | V6: Igor
A7: 6 | B7: 19.2 | D7: 81.42 | E7: 4088 | F7: 2062 | G7: 15.5 | H7: 0.999 | I7: 998 | J7: 2382.23 | M7: 11.5 | N7: 1.281e-05 | P7: 21 | T7: TRM-007 | U7: 006 | V7: Izabela
A8: 7 | B8: 19.07 | D8: 94.92 | E8: 4160 | F8: 2067 | G8: 15.6 | H8: 0.999 | I8: 1000 | J8: 2343.8 | M8: 11.6 | N8: 1.2774e-05 | P8: 26 | T8: TRM-006 | U8: 007 | V8: João Gustavo
A9: 8 | D9: 79.22 | E9: 4162 | F9: 2076 | G9: 15.7 | H9: 0.999 | I9: 999 | J9: 2370.59 | M9: 11.7 | N9: 1.2738e-05 | P9: 27 | T9: TRM-008 | U9: 008 | V9: Riktiele
A10: 9 | D10: 81.86 | E10: 4230 | F10: 2055 | G10: 15.8 | H10: 0.999 | I10: 1000 | J10: 2332.91 | M10: 11.8 | N10: 1.2702e-05 | P10: 55 | T10: TRM-009 | U10: 009 | V10: Sandro
A11: 10 | D11: 94.12 | E11: 4134 | F11: 2068 | G11: 15.9 | H11: 0.999 | I11: 1002 | J11: 2345 | M11: 11.9 | N11: 1.2666e-05 | T11: TRM-010 | U11: 010
A12: 11 | B12: 16.64 | D12: 80.87 | E12: 4392 | F12: 2062 | G12: 16 | H12: 0.999 | M12: 12 | N12: 1.263e-05 | U12: 011
A13: 12 | D13: 84.82 | E13: 4070 | F13: 2092 | G13: 16.1 | H13: 0.999 | M13: 12.1 | N13: 1.2597e-05 | U13: 012
A14: 13 | B14: 11.4 | D14: 84.06 | E14: 4166 | F14: 2062 | G14: 16.2 | H14: 0.9989 | M14: 12.2 | N14: 1.2564e-05 | U14: 013
A15: 14 | B15: 16.53 | D15: 84.13 | E15: 4194 | F15: 2061 | G15: 16.3 | H15: 0.9989 | M15: 12.3 | N15: 1.2531e-05 | U15: 014
A16: 15 | B16: 18.33 | D16: 83.99 | E16: 4125 | F16: 2075 | G16: 16.4 | H16: 0.9989 | M16: 12.4 | N16: 1.2498e-05 | U16: 015
A17: 16 | B17: 19.13 | D17: 84.81 | E17: 4222 | F17: 2060 | G17: 16.5 | H17: 0.9989 | M17: 12.5 | N17: 1.2465e-05 | U17: 016
A18: 17 | B18: 17.93 | D18: 82.49 | E18: 4258 | F18: 2052 | G18: 16.6 | H18: 0.9989 | M18: 12.6 | N18: 1.2432e-05 | U18: 017
A19: 18 | B19: 19.03 | D19: 84 | E19: 4136 | F19: 2066 | G19: 16.7 | H19: 0.9989 | M19: 12.7 | N19: 1.2399e-05 | U19: 018
A20: 19 | D20: 83.9 | E20: 4226 | F20: 2061 | G20: 16.8 | H20: 0.9988 | M20: 12.8 | N20: 1.2366e-05 | U20: 019
A21: 20 | B21: 11.11 | D21: 97.62 | E21: 4254 | F21: 2063 | G21: 16.9 | H21: 0.9988 | M21: 12.9 | N21: 1.2333e-05 | U21: 020
A22: 21 | B22: 17.91 | D22: 83.85 | E22: 4268 | F22: 2067 | G22: 17 | H22: 0.9988 | M22: 13 | N22: 1.23e-05
A23: 22 | B23: 18.22 | D23: 85.95 | E23: 4202 | F23: 2069 | G23: 17.1 | H23: 0.9988 | M23: 13.1 | N23: 1.2268e-05 | P23: Sim | Q23: janeiro
A24: 23 | B24: 18.41 | D24: 90.76 | E24: 4208 | F24: 2062 | G24: 17.2 | H24: 0.9988 | M24: 13.2 | N24: 1.2236e-05 | P24: Não | Q24: fevereiro
A25: 24 | B25: 11.04 | D25: 84.08 | E25: 4144 | F25: 2065 | G25: 17.3 | H25: 0.9987 | M25: 13.3 | N25: 1.2204e-05 | Q25: março
A26: 25 | B26: 12.02 | D26: 96.12 | E26: 4106 | F26: 2068 | G26: 17.4 | H26: 0.9987 | M26: 13.4 | N26: 1.2172e-05 | Q26: abril
A27: 26 | B27: 12.17 | D27: 91.33 | E27: 4164 | F27: 2070 | G27: 17.5 | H27: 0.9987 | M27: 13.5 | N27: 1.214e-05 | Q27: maio
A28: 27 | B28: 18.17 | D28: 98.98 | E28: 4262 | F28: 2059 | G28: 17.6 | H28: 0.9987 | M28: 13.6 | N28: 1.2108e-05 | Q28: junho
A29: 28 | B29: 17.99 | D29: 91.29 | E29: 4198 | F29: 2067 | G29: 17.7 | H29: 0.9987 | M29: 13.7 | N29: 1.2076e-05 | Q29: julho
A30: 29 | B30: 18.62 | D30: 97.98 | E30: 4252 | F30: 2058 | G30: 17.8 | H30: 0.9987 | M30: 13.8 | N30: 1.2044e-05 | Q30: agosto
A31: 30 | B31: 18.89 | D31: 83.56 | E31: 4182 | F31: 2068 | G31: 17.9 | H31: 0.9986 | M31: 13.9 | N31: 1.2012e-05 | Q31: setembro
A32: 31 | B32: 18 | D32: 58.82 | E32: 4074 | F32: 2061 | G32: 18 | H32: 0.9986 | M32: 14 | N32: 1.198e-05 | Q32: outubro
A33: 32 | B33: 11.87 | D33: 55.97 | E33: 4242 | F33: 2057 | G33: 18.1 | H33: 0.9986 | M33: 14.1 | N33: 1.195e-05 | Q33: novembro
A34: 33 | B34: 12.14 | D34: 54.05 | E34: 4148 | F34: 2067 | G34: 18.2 | H34: 0.9986 | M34: 14.2 | N34: 1.192e-05 | Q34: dezembro
A35: 34 | B35: 18.43 | D35: 57.5 | E35: 4118 | F35: 2081 | G35: 18.3 | H35: 0.9986 | M35: 14.3 | N35: 1.189e-05
A36: 35 | B36: 18.65 | D36: 53.79 | E36: 4232 | F36: 2059 | G36: 18.4 | H36: 0.9985 | M36: 14.4 | N36: 1.186e-05
A37: 36 | B37: 18.19 | D37: 54.57 | E37: 4186 | F37: 2066 | G37: 18.5 | H37: 0.9985 | M37: 14.5 | N37: 1.183e-05
A38: 37 | B38: 11.27 | D38: 56.04 | E38: 4122 | F38: 2062 | G38: 18.6 | H38: 0.9985 | M38: 14.6 | N38: 1.18e-05
A39: 38 | B39: 17.32 | D39: 58.47 | E39: 4086 | F39: 2079 | G39: 18.7 | H39: 0.9985 | M39: 14.7 | N39: 1.177e-05
A40: 39 | B40: 17.48 | D40: 56.81 | E40: 4182 | F40: 2078 | G40: 18.8 | H40: 0.9985 | M40: 14.8 | N40: 1.174e-05
A41: 40 | B41: 18.17 | D41: 59.29 | E41: 4054 | F41: 2066 | G41: 18.9 | H41: 0.9985 | M41: 14.9 | N41: 1.171e-05
A42: 41 | B42: 11.82 | D42: 57.79 | E42: 4144 | F42: 2072 | G42: 19 | H42: 0.9984 | M42: 15 | N42: 1.168e-05
A43: 42 | B43: 17.72 | D43: 53.19 | E43: 4158 | F43: 2080 | G43: 19.1 | H43: 0.9984 | M43: 15.1 | N43: 1.165e-05
A44: 43 | B44: 18.65 | D44: 55.08 | E44: 4195 | F44: 2065 | G44: 19.2 | H44: 0.9984 | M44: 15.2 | N44: 1.162e-05
A45: 44 | B45: 17.6 | D45: 56.05 | E45: 4206 | F45: 2059 | G45: 19.3 | H45: 0.9984 | M45: 15.3 | N45: 1.159e-05
A46: 45 | B46: 18.04 | D46: 61.13 | E46: 4150 | F46: 2081 | G46: 19.4 | H46: 0.9984 | M46: 15.4 | N46: 1.156e-05
A47: 46 | B47: 18.77 | D47: 56.23 | E47: 4176 | F47: 2078 | G47: 19.5 | H47: 0.9983 | M47: 15.5 | N47: 1.153e-05
A48: 47 | B48: 11.13 | D48: 56.73 | E48: 4132 | F48: 2043 | G48: 19.6 | H48: 0.9983 | M48: 15.6 | N48: 1.15e-05
A49: 48 | B49: 18.33 | D49: 58.89 | E49: 4218 | F49: 2062 | G49: 19.7 | H49: 0.9983 | M49: 15.7 | N49: 1.147e-05
A50: 49 | B50: 17.16 | D50: 45.19 | E50: 4194 | F50: 2055 | G50: 19.8 | H50: 0.99827 | M50: 15.8 | N50: 1.144e-05
A51: 50 | B51: 11.16 | D51: 57.68 | E51: 4100 | F51: 2073 | G51: 19.9 | H51: 0.99825 | M51: 15.9 | N51: 1.141e-05
A52: 51 | B52: 17.84 | E52: 4238 | F52: 2074 | G52: 20 | H52: 0.99823 | M52: 16 | N52: 1.138e-05
A53: 52 | B53: 17.44 | E53: 4138 | F53: 2081 | G53: 20.1 | H53: 0.99821 | M53: 16.1 | N53: 1.1351e-05
A54: 53 | B54: 11.8 | E54: 4144 | F54: 2066 | G54: 20.2 | H54: 0.99819 | M54: 16.2 | N54: 1.1322e-05
A55: 54 | B55: 11.91 | E55: 4208 | F55: 2073 | G55: 20.3 | H55: 0.99817 | M55: 16.3 | N55: 1.1293e-05
A56: 55 | B56: 18.96 | E56: 4162 | F56: 2063 | G56: 20.4 | H56: 0.99815 | M56: 16.4 | N56: 1.1264e-05
A57: 56 | B57: 18.73 | E57: 4148 | F57: 2063 | G57: 20.5 | H57: 0.99813 | M57: 16.5 | N57: 1.1235e-05
A58: 57 | B58: 19.29 | E58: 4282 | F58: 2061 | G58: 20.6 | H58: 0.9981 | M58: 16.6 | N58: 1.1206e-05
A59: 58 | B59: 18.07 | E59: 4108 | F59: 2069 | G59: 20.7 | H59: 0.99808 | M59: 16.7 | N59: 1.1177e-05
A60: 59 | B60: 18.43 | E60: 4114 | F60: 2068 | G60: 20.8 | H60: 0.99806 | M60: 16.8 | N60: 1.1148e-05
A61: 60 | B61: 11.83 | E61: 4128 | F61: 2062 | G61: 20.9 | H61: 0.99804 | M61: 16.9 | N61: 1.1119e-05
A62: 61 | B62: 18.9 | E62: 4220 | F62: 2059 | G62: 21 | H62: 0.99802 | M62: 17 | N62: 1.109e-05
A63: 62 | B63: 19.56 | E63: 4244 | F63: 2053 | G63: 21.1 | H63: 0.998 | M63: 17.1 | N63: 1.1062e-05
A64: 63 | B64: 18.05 | E64: 4174 | F64: 2077 | G64: 21.2 | H64: 0.99798 | M64: 17.2 | N64: 1.1034e-05
A65: 64 | B65: 18.83 | E65: 4174 | F65: 2069 | G65: 21.3 | H65: 0.99796 | M65: 17.3 | N65: 1.1006e-05
A66: 65 | B66: 18.75 | E66: 4182 | F66: 2063 | G66: 21.4 | H66: 0.99793 | M66: 17.4 | N66: 1.0978e-05
A67: 66 | B67: 19.32 | E67: 4772 | F67: 2058 | G67: 21.5 | H67: 0.99791 | M67: 17.5 | N67: 1.095e-05
A68: 67 | B68: 11.25 | E68: 4234 | F68: 2059 | G68: 21.6 | H68: 0.99789 | M68: 17.6 | N68: 1.0922e-05
A69: 68 | B69: 18.53 | E69: 4134 | F69: 2058 | G69: 21.7 | H69: 0.99787 | M69: 17.7 | N69: 1.0894e-05
A70: 69 | B70: 18.37 | E70: 4142 | F70: 2077 | G70: 21.8 | H70: 0.99785 | M70: 17.8 | N70: 1.0866e-05
A71: 70 | B71: 17.46 | E71: 4158 | F71: 2080 | G71: 21.9 | H71: 0.99783 | M71: 17.9 | N71: 1.0838e-05
A72: 71 | B72: 12.03 | E72: 4184 | F72: 2067 | G72: 22 | H72: 0.9978 | M72: 18 | N72: 1.081e-05
A73: 72 | B73: 17.57 | E73: 4266 | F73: 2069 | G73: 22.1 | H73: 0.99778 | M73: 18.1 | N73: 1.0783e-05
A74: 73 | B74: 18.56 | E74: 4102 | F74: 2081 | G74: 22.2 | H74: 0.99775 | M74: 18.2 | N74: 1.0756e-05
A75: 74 | B75: 11.73 | E75: 4134 | F75: 2065 | G75: 22.3 | H75: 0.99773 | M75: 18.3 | N75: 1.0729e-05
A76: 75 | B76: 11.88 | E76: 4134 | F76: 2069 | G76: 22.4 | H76: 0.9977 | M76: 18.4 | N76: 1.0702e-05
A77: 76 | B77: 12.31 | E77: 4118 | F77: 2059 | G77: 22.5 | H77: 0.99768 | M77: 18.5 | N77: 1.0675e-05
A78: 77 | B78: 18.52 | E78: 4110 | F78: 2053 | G78: 22.6 | H78: 0.99765 | M78: 18.6 | N78: 1.0648e-05
A79: 78 | B79: 18.46 | E79: 4068 | F79: 2079 | G79: 22.7 | H79: 0.99763 | M79: 18.7 | N79: 1.0621e-05
A80: 79 | B80: 18.99 | E80: 4054 | F80: 2085 | G80: 22.8 | H80: 0.99761 | M80: 18.8 | N80: 1.0594e-05
A81: 80 | B81: 18.85 | E81: 4134 | F81: 2066 | G81: 22.9 | H81: 0.99758 | M81: 18.9 | N81: 1.0567e-05
A82: 81 | B82: 17.24 | E82: 4076 | F82: 2089 | G82: 23 | H82: 0.99756 | M82: 19 | N82: 1.054e-05
A83: 82 | B83: 18.69 | E83: 4164 | F83: 2078 | G83: 23.1 | H83: 0.99754 | M83: 19.1 | N83: 1.0515e-05
A84: 83 | B84: 12.28 | E84: 4168 | F84: 2080 | G84: 23.2 | H84: 0.99751 | M84: 19.2 | N84: 1.049e-05
A85: 84 | B85: 11.26 | E85: 4090 | F85: 2060 | G85: 23.3 | H85: 0.99749 | M85: 19.3 | N85: 1.0465e-05
A86: 85 | B86: 12.2 | E86: 3966 | F86: 2062 | G86: 23.4 | H86: 0.99746 | M86: 19.4 | N86: 1.044e-05
A87: 86 | B87: 12.19 | E87: 4214 | F87: 2062 | G87: 23.5 | H87: 0.99744 | M87: 19.5 | N87: 1.0415e-05
A88: 87 | B88: 18.45 | E88: 4190 | F88: 2074 | G88: 23.6 | H88: 0.99742 | M88: 19.6 | N88: 1.039e-05
A89: 88 | B89: 17.09 | E89: 4190 | F89: 2065 | G89: 23.7 | H89: 0.99739 | M89: 19.7 | N89: 1.0365e-05
A90: 89 | B90: 11.6 | E90: 4094 | F90: 2075 | G90: 23.8 | H90: 0.99737 | M90: 19.8 | N90: 1.034e-05
A91: 90 | B91: 11.88 | E91: 4766 | F91: 2083 | G91: 23.9 | H91: 0.99734 | M91: 19.9 | N91: 1.0315e-05
A92: 91 | B92: 18.2 | E92: 4778 | F92: 2078 | G92: 24 | H92: 0.99732 | M92: 20 | N92: 1.029e-05
A93: 92 | B93: 11.83 | E93: 4792 | F93: 2082 | G93: 24.1 | H93: 0.99729 | M93: 20.1 | N93: 1.0264e-05
A94: 93 | B94: 11.33 | E94: 4854 | F94: 2063 | G94: 24.2 | H94: 0.99727 | M94: 20.2 | N94: 1.0238e-05
A95: 94 | B95: 17.83 | E95: 4706 | F95: 2083 | G95: 24.3 | H95: 0.99724 | M95: 20.3 | N95: 1.0212e-05
A96: 95 | E96: 4906 | F96: 2065 | G96: 24.4 | H96: 0.99722 | M96: 20.4 | N96: 1.0186e-05
A97: 96 | E97: 4776 | F97: 2090 | G97: 24.5 | H97: 0.9972 | M97: 20.5 | N97: 1.016e-05
A98: 97 | E98: 4624 | F98: 2063 | G98: 24.6 | H98: 0.99717 | M98: 20.6 | N98: 1.0134e-05
A99: 98 | E99: 4740 | F99: 2086 | G99: 24.7 | H99: 0.99714 | M99: 20.7 | N99: 1.0108e-05
A100: 99 | E100: 4138 | F100: 2067 | G100: 24.8 | H100: 0.99712 | M100: 20.8 | N100: 1.0082e-05
A101: 100 | E101: 4748 | F101: 2082 | G101: 24.9 | H101: 0.99709 | M101: 20.9 | N101: 1.0056e-05
A102: 101 | G102: 25 | H102: 0.99707 | M102: 21 | N102: 1.003e-05
A103: 102 | E103: 4880 | F103: 2061 | G103: 25.1 | H103: 0.99704 | M103: 21.1 | N103: 1.0007e-05
A104: 103 | E104: 4784 | F104: 2080 | G104: 25.2 | H104: 0.99702 | M104: 21.2 | N104: 9.984e-06
A105: 104 | G105: 25.3 | H105: 0.99699 | M105: 21.3 | N105: 9.961e-06
G106: 25.4 | H106: 0.99697 | M106: 21.4 | N106: 9.938e-06
G107: 25.5 | H107: 0.99694 | M107: 21.5 | N107: 9.915e-06
G108: 25.6 | H108: 0.99691 | M108: 21.6 | N108: 9.892e-06
G109: 25.7 | H109: 0.99689 | M109: 21.7 | N109: 9.869e-06
G110: 25.8 | H110: 0.99687 | M110: 21.8 | N110: 9.846e-06
G111: 25.9 | H111: 0.99684 | M111: 21.9 | N111: 9.823e-06
G112: 26 | H112: 0.99681 | M112: 22 | N112: 9.8e-06
G113: 26.1 | H113: 0.99678 | M113: 22.1 | N113: 9.776e-06
G114: 26.2 | H114: 0.99676 | M114: 22.2 | N114: 9.752e-06
G115: 26.3 | H115: 0.99673 | M115: 22.3 | N115: 9.728e-06
G116: 26.4 | H116: 0.9967 | M116: 22.4 | N116: 9.704e-06
G117: 26.5 | H117: 0.99668 | M117: 22.5 | N117: 9.68e-06
G118: 26.6 | H118: 0.99665 | M118: 22.6 | N118: 9.656e-06
G119: 26.7 | H119: 0.99663 | M119: 22.7 | N119: 9.632e-06
G120: 26.8 | H120: 0.9966 | M120: 22.8 | N120: 9.608e-06
G121: 26.9 | H121: 0.99657 | M121: 22.9 | N121: 9.584e-06
G122: 27 | H122: 0.99654 | M122: 23 | N122: 9.56e-06
G123: 27.1 | H123: 0.99651 | M123: 23.1 | N123: 9.538e-06
G124: 27.2 | H124: 0.99648 | M124: 23.2 | N124: 9.516e-06
G125: 27.3 | H125: 0.99646 | M125: 23.3 | N125: 9.494e-06
G126: 27.4 | H126: 0.99643 | M126: 23.4 | N126: 9.472e-06
G127: 27.5 | H127: 0.994 | M127: 23.5 | N127: 9.45e-06
G128: 27.6 | H128: 0.99637 | M128: 23.6 | N128: 9.428e-06
G129: 27.7 | H129: 0.99634 | M129: 23.7 | N129: 9.406e-06
G130: 27.8 | H130: 0.99632 | M130: 23.8 | N130: 9.384e-06
G131: 27.9 | H131: 0.99629 | M131: 23.9 | N131: 9.362e-06
G132: 28 | H132: 0.99626 | M132: 24 | N132: 9.34e-06
G133: 28.1 | H133: 0.99623 | M133: 24.1 | N133: 9.319e-06
G134: 28.2 | H134: 0.9962 | M134: 24.2 | N134: 9.298e-06
G135: 28.3 | H135: 0.99617 | M135: 24.3 | N135: 9.277e-06
G136: 28.4 | H136: 0.99614 | M136: 24.4 | N136: 9.256e-06
G137: 28.5 | H137: 0.99611 | M137: 24.5 | N137: 9.235e-06
G138: 28.6 | H138: 0.99608 | M138: 24.6 | N138: 9.214e-06
G139: 28.7 | H139: 0.99606 | M139: 24.7 | N139: 9.193e-06
G140: 28.8 | H140: 0.99603 | M140: 24.8 | N140: 9.172e-06
G141: 28.9 | H141: 0.996 | M141: 24.9 | N141: 9.151e-06
G142: 29 | H142: 0.99597 | M142: 25 | N142: 9.13e-06
G143: 29.1 | H143: 0.99594 | M143: 25.1 | N143: 9.109e-06
G144: 29.2 | H144: 0.99591 | M144: 25.2 | N144: 9.088e-06
G145: 29.3 | H145: 0.99588 | M145: 25.3 | N145: 9.067e-06
G146: 29.4 | H146: 0.99585 | M146: 25.4 | N146: 9.046e-06
G147: 29.5 | H147: 0.99582 | M147: 25.5 | N147: 9.025e-06
G148: 29.6 | H148: 0.99579 | M148: 25.6 | N148: 9.004e-06
G149: 29.7 | H149: 0.99576 | M149: 25.7 | N149: 8.983e-06
G150: 29.8 | H150: 0.99573 | M150: 25.8 | N150: 8.962e-06
G151: 29.9 | H151: 0.9957 | M151: 25.9 | N151: 8.941e-06
G152: 30 | H152: 0.99567 | M152: 26 | N152: 8.92e-06
G153: 30.1 | H153: 0.99564 | M153: 26.1 | N153: 8.9e-06
G154: 30.2 | H154: 0.99561 | M154: 26.2 | N154: 8.88e-06
G155: 30.3 | H155: 0.99558 | M155: 26.3 | N155: 8.86e-06
G156: 30.4 | H156: 0.99555 | M156: 26.4 | N156: 8.84e-06
G157: 30.5 | H157: 0.99552 | M157: 26.5 | N157: 8.82e-06
G158: 30.6 | H158: 0.99549 | M158: 26.6 | N158: 8.8e-06
G159: 30.7 | H159: 0.99546 | M159: 26.7 | N159: 8.78e-06
G160: 30.8 | H160: 0.99543 | M160: 26.8 | N160: 8.76e-06
G161: 30.9 | H161: 0.9954 | M161: 26.9 | N161: 8.74e-06
G162: 31 | H162: 0.99537 | M162: 27 | N162: 8.72e-06
G163: 31.1 | H163: 0.99533 | M163: 27.1 | N163: 8.7e-06
G164: 31.2 | H164: 0.9953 | M164: 27.2 | N164: 8.68e-06
G165: 31.3 | H165: 0.99527 | M165: 27.3 | N165: 8.66e-06
G166: 31.4 | H166: 0.99524 | M166: 27.4 | N166: 8.64e-06
G167: 31.5 | H167: 0.99521 | M167: 27.5 | N167: 8.62e-06
G168: 31.6 | H168: 0.99518 | M168: 27.6 | N168: 8.6e-06
G169: 31.7 | H169: 0.99515 | M169: 27.7 | N169: 8.58e-06
G170: 31.8 | H170: 0.99512 | M170: 27.8 | N170: 8.56e-06
G171: 31.9 | H171: 0.99509 | M171: 27.9 | N171: 8.54e-06
G172: 32 | H172: 0.99505 | M172: 28 | N172: 8.52e-06
G173: 32.1 | H173: 0.99502 | M173: 28.1 | N173: 8.502e-06
G174: 32.2 | H174: 0.99499 | M174: 28.2 | N174: 8.484e-06
G175: 32.3 | H175: 0.99496 | M175: 28.3 | N175: 8.466e-06
G176: 32.4 | H176: 0.99493 | M176: 28.4 | N176: 8.448e-06
G177: 32.5 | H177: 0.9949 | M177: 28.5 | N177: 8.43e-06
G178: 32.6 | H178: 0.99486 | M178: 28.6 | N178: 8.412e-06
G179: 32.7 | H179: 0.99483 | M179: 28.7 | N179: 8.394e-06
G180: 32.8 | H180: 0.9948 | M180: 28.8 | N180: 8.376e-06
G181: 32.9 | H181: 0.99477 | M181: 28.9 | N181: 8.358e-06
G182: 33 | M182: 29 | N182: 8.34e-06
G183: 33.1 | M183: 29.1 | N183: 8.322e-06
G184: 33.2 | M184: 29.2 | N184: 8.304e-06
G185: 33.3 | M185: 29.3 | N185: 8.286e-06
G186: 33.4 | M186: 29.4 | N186: 8.268e-06
G187: 33.5 | M187: 29.5 | N187: 8.25e-06
G188: 13.2 | H188: 0.9994 | M188: 29.6 | N188: 8.232e-06
M189: 29.7 | N189: 8.214e-06
M190: 29.8 | N190: 8.196e-06
M191: 29.9 | N191: 8.178e-06
M192: 30 | N192: 8.16e-06
M193: 30.1 | N193: 8.142e-06
M194: 30.2 | N194: 8.124e-06
M195: 30.3 | N195: 8.106e-06
M196: 30.4 | N196: 8.088e-06
M197: 30.5 | N197: 8.07e-06
M198: 30.6 | N198: 8.052e-06
M199: 30.7 | N199: 8.034e-06
M200: 30.8 | N200: 8.016e-06
... 42 more rows

Sheet CALCULOS (hidden)
Q1: HEXA | Z1: Peso Específico dos Grãos: | AC1: =CARACTERIZAÇÃO!R116 -> 2.889653089
Q2: CLB-DNS-01 (Hexa) | Z2: Grau de Saturação 01: | AC2: 1 | AJ2: CLB-DNS-02 (Água)
Q3: Leitura | R3: a' | S3: a'' | T3: T °C | U3: Correção | Z3: Grau de Saturação 02: | AC3: 0.8 | AJ3: Leitura | AK3: a' | AL3: a'' | AM3: T °C | AN3: Correção
Q4: 995 | R4: 21.58015 | S4: 20.45558253 | T4: 8 | U4: -3.08605 | Z4: Grau de Saturação 03: | AC4: 0.9 | AJ4: 995 | AK4: 21.205 | AL4: 20.02197982 | AM4: 8 | AN4: 2.49831
Q5: 995.25 | R5: 21.5239675 | S5: 20.39940003 | T5: 8.1 | U5: -3.09154918 | Z5: Densidade da Água: | AC5: 1 | AJ5: 995.25 | AK5: 21.151 | AL5: 19.96797982 | AM5: 8.1 | AN5: 2.50623184
Q6: 995.5 | R6: 21.467785 | S6: 20.34321753 | T6: 8.2 | U6: -3.09668024 | AJ6: 995.5 | AK6: 21.097 | AL6: 19.91397982 | AM6: 8.2 | AN6: 2.51420952
Q7: 995.75 | R7: 21.4116025 | S7: 20.28703503 | T7: 8.3 | U7: -3.10144546 | AJ7: 995.75 | AK7: 21.043 | AL7: 19.85997982 | AM7: 8.3 | AN7: 2.52224328
Q8: 996 | R8: 21.35542 | S8: 20.23085253 | T8: 8.4 | U8: -3.10584712 | Z8: Teor de Umidade | AC8: Densidade seca S=100% | AF8: Densidade seca S=80% | AJ8: 996 | AK8: 20.989 | AL8: 19.80597982 | AM8: 8.4 | AN8: 2.53033336
Q9: 996.25 | R9: 21.2992375 | S9: 20.17467003 | T9: 8.5 | U9: -3.1098875 | Z9: =CARACTERIZAÇÃO!$F$288/100 -> 0.1451715528 | AA9: =CARACTERIZAÇÃO!$F$288 -> 14.51715528 | AB9: =CARACTERIZAÇÃO!$F$298 -> 1.657357956 | AC9: =($AC$5*$AC$1*$AC$2)/((Z9*$AC$1)+($AC$2*$AC$5)) -> 2.035690314 | AF9: =($AC$5*$AC$1*$AC$3)/((Z9*$AC$1)+($AC$3*$AC$5)) -> 1.895638493 | AJ9: 996.25 | AK9: 20.935 | AL9: 19.75197982 | AM9: 8.5 | AN9: 2.53848
Q10: 996.5 | R10: 21.243055 | S10: 20.11848753 | T10: 8.6 | U10: -3.11356888 | Z10: =CARACTERIZAÇÃO!$H$288/100 -> 0.1663784334 | AA10: =CARACTERIZAÇÃO!$H$288 -> 16.63784334 | AB10: =CARACTERIZAÇÃO!$H$298 -> 1.687696232 | AC10: =($AC$5*$AC$1*$AC$2)/((Z10*$AC$1)+($AC$2*$AC$5)) -> 1.951445174 | AF10: =($AC$5*$AC$1*$AC$3)/((Z10*$AC$1)+($AC$3*$AC$5)) -> 1.804939001 | AJ10: 996.5 | AK10: 20.881 | AL10: 19.69797982 | AM10: 8.6 | AN10: 2.54668344
Q11: 996.75 | R11: 21.1868725 | S11: 20.06230503 | T11: 8.7 | U11: -3.11689354 | Z11: =CARACTERIZAÇÃO!$J$288/100 -> 0.187585314 | AA11: =CARACTERIZAÇÃO!$J$288 -> 18.7585314 | AB11: =CARACTERIZAÇÃO!$J$298 -> 1.703134822 | AC11: =($AC$5*$AC$1*$AC$2)/((Z11*$AC$1)+($AC$2*$AC$5)) -> 1.873895751 | AF11: =($AC$5*$AC$1*$AC$3)/((Z11*$AC$1)+($AC$3*$AC$5)) -> 1.722522489 | AJ11: 996.75 | AK11: 20.827 | AL11: 19.64397982 | AM11: 8.7 | AN11: 2.55494392
Q12: 997 | R12: 21.13069 | S12: 20.00612253 | T12: 8.8 | U12: -3.11986376 | Z12: =CARACTERIZAÇÃO!$L$288/100 -> 0.2087921946 | AA12: =CARACTERIZAÇÃO!$L$288 -> 20.87921946 | AB12: =CARACTERIZAÇÃO!$L$298 -> 1.693730676 | AC12: =($AC$5*$AC$1*$AC$2)/((Z12*$AC$1)+($AC$2*$AC$5)) -> 1.802274301 | AF12: =($AC$5*$AC$1*$AC$3)/((Z12*$AC$1)+($AC$3*$AC$5)) -> 1.647303858 | AJ12: 997 | AK12: 20.773 | AL12: 19.58997982 | AM12: 8.8 | AN12: 2.56326168
Q13: 997.25 | R13: 21.0745075 | S13: 19.94994003 | T13: 8.9 | U13: -3.12248182 | Z13: =CARACTERIZAÇÃO!$N$288/100 -> 0.2299990752 | AA13: =CARACTERIZAÇÃO!$N$288 -> 22.99990752 | AB13: =CARACTERIZAÇÃO!$N$298 -> 1.628776116 | AC13: =($AC$5*$AC$1*$AC$2)/((Z13*$AC$1)+($AC$2*$AC$5)) -> 1.735926135 | AF13: =($AC$5*$AC$1*$AC$3)/((Z13*$AC$1)+($AC$3*$AC$5)) -> 1.578379619 | AJ13: 997.25 | AK13: 20.719 | AL13: 19.53597982 | AM13: 8.9 | AN13: 2.57163696
Q14: 997.5 | R14: 21.018325 | S14: 19.89375753 | T14: 9 | U14: -3.12475 | AJ14: 997.5 | AK14: 20.665 | AL14: 19.48197982 | AM14: 9 | AN14: 2.58007
Q15: 997.75 | R15: 20.9621425 | S15: 19.83757503 | T15: 9.1 | U15: -3.12667058 | AJ15: 997.75 | AK15: 20.611 | AL15: 19.42797982 | AM15: 9.1 | AN15: 2.58856104
Q16: 998 | R16: 20.90596 | S16: 19.78139253 | T16: 9.2 | U16: -3.12824584 | AJ16: 998 | AK16: 20.557 | AL16: 19.37397982 | AM16: 9.2 | AN16: 2.59711032
Q17: 998.25 | R17: 20.8497775 | S17: 19.72521003 | T17: 9.3 | U17: -3.12947806 | AJ17: 998.25 | AK17: 20.503 | AL17: 19.31997982 | AM17: 9.3 | AN17: 2.60571808
Q18: 998.5 | R18: 20.793595 | S18: 19.66902753 | T18: 9.4 | U18: -3.13036952 | AJ18: 998.5 | AK18: 20.449 | AL18: 19.26597982 | AM18: 9.4 | AN18: 2.61438456
Q19: 998.75 | R19: 20.7374125 | S19: 19.61284503 | T19: 9.5 | U19: -3.1309225 | AJ19: 998.75 | AK19: 20.395 | AL19: 19.21197982 | AM19: 9.5 | AN19: 2.62311
Q20: 999 | R20: 20.68123 | S20: 19.55666253 | T20: 9.6 | U20: -3.13113928 | AJ20: 999 | AK20: 20.341 | AL20: 19.15797982 | AM20: 9.6 | AN20: 2.63189464
Q21: 999.25 | R21: 20.6250475 | S21: 19.50048003 | T21: 9.7 | U21: -3.13102214 | AJ21: 999.25 | AK21: 20.287 | AL21: 19.10397982 | AM21: 9.7 | AN21: 2.64073872
Q22: 999.5 | R22: 20.568865 | S22: 19.44429753 | T22: 9.8 | U22: -3.13057336 | AJ22: 999.5 | AK22: 20.233 | AL22: 19.04997982 | AM22: 9.8 | AN22: 2.64964248
Q23: 999.75 | R23: 20.5126825 | S23: 19.38811503 | T23: 9.9 | U23: -3.12979522 | AJ23: 999.75 | AK23: 20.179 | AL23: 18.99597982 | AM23: 9.9 | AN23: 2.65860616
Q24: 1000 | R24: 20.4565 | S24: 19.33193253 | T24: 10 | U24: -3.12869 | AJ24: 1000 | AK24: 20.125 | AL24: 18.94197982 | AM24: 10 | AN24: 2.66763
Q25: 1000.25 | R25: 20.4003175 | S25: 19.27575003 | T25: 10.1 | U25: -3.12725998 | AJ25: 1000.25 | AK25: 20.071 | AL25: 18.88797982 | AM25: 10.1 | AN25: 2.67671424
Q26: 1000.5 | R26: 20.344135 | S26: 19.21956753 | T26: 10.2 | U26: -3.12550744 | AJ26: 1000.5 | AK26: 20.017 | AL26: 18.83397982 | AM26: 10.2 | AN26: 2.68585912
Q27: 1000.75 | R27: 20.2879525 | S27: 19.16338503 | T27: 10.3 | U27: -3.12343466 | AJ27: 1000.75 | AK27: 19.963 | AL27: 18.77997982 | AM27: 10.3 | AN27: 2.69506488
Q28: 1001 | R28: 20.23177 | S28: 19.10720253 | T28: 10.4 | U28: -3.12104392 | AJ28: 1001 | AK28: 19.909 | AL28: 18.72597982 | AM28: 10.4 | AN28: 2.70433176
Q29: 1001.25 | R29: 20.1755875 | S29: 19.05102003 | T29: 10.5 | U29: -3.1183375 | AJ29: 1001.25 | AK29: 19.855 | AL29: 18.67197982 | AM29: 10.5 | AN29: 2.71366
Q30: 1001.5 | R30: 20.119405 | S30: 18.99483753 | T30: 10.6 | U30: -3.11531768 | AJ30: 1001.5 | AK30: 19.801 | AL30: 18.61797982 | AM30: 10.6 | AN30: 2.72304984
Q31: 1001.75 | R31: 20.0632225 | S31: 18.93865503 | T31: 10.7 | U31: -3.11198674 | AJ31: 1001.75 | AK31: 19.747 | AL31: 18.56397982 | AM31: 10.7 | AN31: 2.73250152
Q32: 1002 | R32: 20.00704 | S32: 18.88247253 | T32: 10.8 | U32: -3.10834696 | AJ32: 1002 | AK32: 19.693 | AL32: 18.50997982 | AM32: 10.8 | AN32: 2.74201528
Q33: 1002.25 | R33: 19.9508575 | S33: 18.82629003 | T33: 10.9 | U33: -3.10440062 | AJ33: 1002.25 | AK33: 19.639 | AL33: 18.45597982 | AM33: 10.9 | AN33: 2.75159136
Q34: 1002.5 | R34: 19.894675 | S34: 18.77010753 | T34: 11 | U34: -3.10015 | AJ34: 1002.5 | AK34: 19.585 | AL34: 18.40197982 | AM34: 11 | AN34: 2.76123
Q35: 1002.75 | R35: 19.8384925 | S35: 18.71392503 | T35: 11.1 | U35: -3.09559738 | AJ35: 1002.75 | AK35: 19.531 | AL35: 18.34797982 | AM35: 11.1 | AN35: 2.77093144
Q36: 1003 | R36: 19.78231 | S36: 18.65774253 | T36: 11.2 | U36: -3.09074504 | AJ36: 1003 | AK36: 19.477 | AL36: 18.29397982 | AM36: 11.2 | AN36: 2.78069592
Q37: 1003.25 | R37: 19.7261275 | S37: 18.60156003 | T37: 11.3 | U37: -3.08559526 | AJ37: 1003.25 | AK37: 19.423 | AL37: 18.23997982 | AM37: 11.3 | AN37: 2.79052368
Q38: 1003.5 | R38: 19.669945 | S38: 18.54537753 | T38: 11.4 | U38: -3.08015032 | AJ38: 1003.5 | AK38: 19.369 | AL38: 18.18597982 | AM38: 11.4 | AN38: 2.80041496
Q39: 1003.75 | R39: 19.6137625 | S39: 18.48919503 | T39: 11.5 | U39: -3.0744125 | AJ39: 1003.75 | AK39: 19.315 | AL39: 18.13197982 | AM39: 11.5 | AN39: 2.81037
Q40: 1004 | R40: 19.55758 | S40: 18.43301253 | T40: 11.6 | U40: -3.06838408 | AJ40: 1004 | AK40: 19.261 | AL40: 18.07797982 | AM40: 11.6 | AN40: 2.82038904
Q41: 1004.25 | R41: 19.5013975 | S41: 18.37683003 | T41: 11.7 | U41: -3.06206734 | AJ41: 1004.25 | AK41: 19.207 | AL41: 18.02397982 | AM41: 11.7 | AN41: 2.83047232
Q42: 1004.5 | R42: 19.445215 | S42: 18.32064753 | T42: 11.8 | U42: -3.05546456 | AJ42: 1004.5 | AK42: 19.153 | AL42: 17.96997982 | AM42: 11.8 | AN42: 2.84062008
Q43: 1004.75 | R43: 19.3890325 | S43: 18.26446503 | T43: 11.9 | U43: -3.04857802 | AJ43: 1004.75 | AK43: 19.099 | AL43: 17.91597982 | AM43: 11.9 | AN43: 2.85083256
Q44: 1005 | R44: 19.33285 | S44: 18.20828253 | T44: 12 | U44: -3.04141 | AJ44: 1005 | AK44: 19.045 | AL44: 17.86197982 | AM44: 12 | AN44: 2.86111
Q45: 1005.25 | R45: 19.2766675 | S45: 18.15210003 | T45: 12.1 | U45: -3.03396278 | AJ45: 1005.25 | AK45: 18.991 | AL45: 17.80797982 | AM45: 12.1 | AN45: 2.87145264
Q46: 1005.5 | R46: 19.220485 | S46: 18.09591753 | T46: 12.2 | U46: -3.02623864 | AJ46: 1005.5 | AK46: 18.937 | AL46: 17.75397982 | AM46: 12.2 | AN46: 2.88186072
Q47: 1005.75 | R47: 19.1643025 | S47: 18.03973503 | T47: 12.3 | U47: -3.01823986 | AJ47: 1005.75 | AK47: 18.883 | AL47: 17.69997982 | AM47: 12.3 | AN47: 2.89233448
Q48: 1006 | R48: 19.10812 | S48: 17.98355253 | T48: 12.4 | U48: -3.00996872 | AJ48: 1006 | AK48: 18.829 | AL48: 17.64597982 | AM48: 12.4 | AN48: 2.90287416
Q49: 1006.25 | R49: 19.0519375 | S49: 17.92737003 | T49: 12.5 | U49: -3.0014275 | AJ49: 1006.25 | AK49: 18.775 | AL49: 17.59197982 | AM49: 12.5 | AN49: 2.91348
Q50: 1006.5 | R50: 18.995755 | S50: 17.87118753 | T50: 12.6 | U50: -2.99261848 | AJ50: 1006.5 | AK50: 18.721 | AL50: 17.53797982 | AM50: 12.6 | AN50: 2.92415224
Q51: 1006.75 | R51: 18.9395725 | S51: 17.81500503 | T51: 12.7 | U51: -2.98354394 | AJ51: 1006.75 | AK51: 18.667 | AL51: 17.48397982 | AM51: 12.7 | AN51: 2.93489112
Q52: 1007 | R52: 18.88339 | S52: 17.75882253 | T52: 12.8 | U52: -2.97420616 | AJ52: 1007 | AK52: 18.613 | AL52: 17.42997982 | AM52: 12.8 | AN52: 2.94569688
Q53: 1007.25 | R53: 18.8272075 | S53: 17.70264003 | T53: 12.9 | U53: -2.96460742 | AJ53: 1007.25 | AK53: 18.559 | AL53: 17.37597982 | AM53: 12.9 | AN53: 2.95656976
Q54: 1007.5 | R54: 18.771025 | S54: 17.64645753 | T54: 13 | U54: -2.95475 | AJ54: 1007.5 | AK54: 18.505 | AL54: 17.32197982 | AM54: 13 | AN54: 2.96751
Q55: 1007.75 | R55: 18.7148425 | S55: 17.59027503 | T55: 13.1 | U55: -2.94463618 | AJ55: 1007.75 | AK55: 18.451 | AL55: 17.26797982 | AM55: 13.1 | AN55: 2.97851784
Q56: 1008 | R56: 18.65866 | S56: 17.53409253 | T56: 13.2 | U56: -2.93426824 | AJ56: 1008 | AK56: 18.397 | AL56: 17.21397982 | AM56: 13.2 | AN56: 2.98959352
Q57: 1008.25 | R57: 18.6024775 | S57: 17.47791003 | T57: 13.3 | U57: -2.92364846 | AJ57: 1008.25 | AK57: 18.343 | AL57: 17.15997982 | AM57: 13.3 | AN57: 3.00073728
Q58: 1008.5 | R58: 18.546295 | S58: 17.42172753 | T58: 13.4 | U58: -2.91277912 | AJ58: 1008.5 | AK58: 18.289 | AL58: 17.10597982 | AM58: 13.4 | AN58: 3.01194936
Q59: 1008.75 | R59: 18.4901125 | S59: 17.36554503 | T59: 13.5 | U59: -2.9016625 | AJ59: 1008.75 | AK59: 18.235 | AL59: 17.05197982 | AM59: 13.5 | AN59: 3.02323
Q60: 1009 | R60: 18.43393 | S60: 17.30936253 | T60: 13.6 | U60: -2.89030088 | AJ60: 1009 | AK60: 18.181 | AL60: 16.99797982 | AM60: 13.6 | AN60: 3.03457944
Q61: 1009.25 | R61: 18.3777475 | S61: 17.25318003 | T61: 13.7 | U61: -2.87869654 | AJ61: 1009.25 | AK61: 18.127 | AL61: 16.94397982 | AM61: 13.7 | AN61: 3.04599792
Q62: 1009.5 | R62: 18.321565 | S62: 17.19699753 | T62: 13.8 | U62: -2.86685176 | AJ62: 1009.5 | AK62: 18.073 | AL62: 16.88997982 | AM62: 13.8 | AN62: 3.05748568
Q63: 1009.75 | R63: 18.2653825 | S63: 17.14081503 | T63: 13.9 | U63: -2.85476882 | AJ63: 1009.75 | AK63: 18.019 | AL63: 16.83597982 | AM63: 13.9 | AN63: 3.06904296
Q64: 1010 | R64: 18.2092 | S64: 17.08463253 | T64: 14 | U64: -2.84245 | AJ64: 1010 | AK64: 17.965 | AL64: 16.78197982 | AM64: 14 | AN64: 3.08067
Q65: 1010.25 | R65: 18.1530175 | S65: 17.02845003 | T65: 14.1 | U65: -2.82989758 | AJ65: 1010.25 | AK65: 17.911 | AL65: 16.72797982 | AM65: 14.1 | AN65: 3.09236704
Q66: 1010.5 | R66: 18.096835 | S66: 16.97226753 | T66: 14.2 | U66: -2.81711384 | AJ66: 1010.5 | AK66: 17.857 | AL66: 16.67397982 | AM66: 14.2 | AN66: 3.10413432
Q67: 1010.75 | R67: 18.0406525 | S67: 16.91608503 | T67: 14.3 | U67: -2.80410106 | AJ67: 1010.75 | AK67: 17.803 | AL67: 16.61997982 | AM67: 14.3 | AN67: 3.11597208
Q68: 1011 | R68: 17.98447 | S68: 16.85990253 | T68: 14.4 | U68: -2.79086152 | AJ68: 1011 | AK68: 17.749 | AL68: 16.56597982 | AM68: 14.4 | AN68: 3.12788056
Q69: 1011.25 | R69: 17.9282875 | S69: 16.80372003 | T69: 14.5 | U69: -2.7773975 | AJ69: 1011.25 | AK69: 17.695 | AL69: 16.51197982 | AM69: 14.5 | AN69: 3.13986
Q70: 1011.5 | R70: 17.872105 | S70: 16.74753753 | T70: 14.6 | U70: -2.76371128 | AJ70: 1011.5 | AK70: 17.641 | AL70: 16.45797982 | AM70: 14.6 | AN70: 3.15191064
Q71: 1011.75 | R71: 17.8159225 | S71: 16.69135503 | T71: 14.7 | U71: -2.74980514 | AJ71: 1011.75 | AK71: 17.587 | AL71: 16.40397982 | AM71: 14.7 | AN71: 3.16403272
Q72: 1012 | R72: 17.75974 | S72: 16.63517253 | T72: 14.8 | U72: -2.73568136 | AJ72: 1012 | AK72: 17.533 | AL72: 16.34997982 | AM72: 14.8 | AN72: 3.17622648
Q73: 1012.25 | R73: 17.7035575 | S73: 16.57899003 | T73: 14.9 | U73: -2.72134222 | AJ73: 1012.25 | AK73: 17.479 | AL73: 16.29597982 | AM73: 14.9 | AN73: 3.18849216
Q74: 1012.5 | R74: 17.647375 | S74: 16.52280753 | T74: 15 | U74: -2.70679 | AJ74: 1012.5 | AK74: 17.425 | AL74: 16.24197982 | AM74: 15 | AN74: 3.20083
Q75: 1012.75 | R75: 17.5911925 | S75: 16.46662503 | T75: 15.1 | U75: -2.69202698 | AJ75: 1012.75 | AK75: 17.371 | AL75: 16.18797982 | AM75: 15.1 | AN75: 3.21324024
Q76: 1013 | R76: 17.53501 | S76: 16.41044253 | T76: 15.2 | U76: -2.67705544 | AJ76: 1013 | AK76: 17.317 | AL76: 16.13397982 | AM76: 15.2 | AN76: 3.22572312
Q77: 1013.25 | R77: 17.4788275 | S77: 16.35426003 | T77: 15.3 | U77: -2.66187766 | AJ77: 1013.25 | AK77: 17.263 | AL77: 16.07997982 | AM77: 15.3 | AN77: 3.23827888
Q78: 1013.5 | R78: 17.422645 | S78: 16.29807753 | T78: 15.4 | U78: -2.64649592 | AJ78: 1013.5 | AK78: 17.209 | AL78: 16.02597982 | AM78: 15.4 | AN78: 3.25090776
Q79: 1013.75 | R79: 17.3664625 | S79: 16.24189503 | T79: 15.5 | U79: -2.6309125 | AJ79: 1013.75 | AK79: 17.155 | AL79: 15.97197982 | AM79: 15.5 | AN79: 3.26361
Q80: 1014 | R80: 17.31028 | S80: 16.18571253 | T80: 15.6 | U80: -2.61512968 | AJ80: 1014 | AK80: 17.101 | AL80: 15.91797982 | AM80: 15.6 | AN80: 3.27638584
Q81: 1014.25 | R81: 17.2540975 | S81: 16.12953003 | T81: 15.7 | U81: -2.59914974 | AJ81: 1014.25 | AK81: 17.047 | AL81: 15.86397982 | AM81: 15.7 | AN81: 3.28923552
Q82: 1014.5 | R82: 17.197915 | S82: 16.07334753 | T82: 15.8 | U82: -2.58297496 | AJ82: 1014.5 | AK82: 16.993 | AL82: 15.80997982 | AM82: 15.8 | AN82: 3.30215928
Q83: 1014.75 | R83: 17.1417325 | S83: 16.01716503 | T83: 15.9 | U83: -2.56660762 | AJ83: 1014.75 | AK83: 16.939 | AL83: 15.75597982 | AM83: 15.9 | AN83: 3.31515736
Q84: 1015 | R84: 17.08555 | S84: 15.96098253 | T84: 16 | U84: -2.55005 | AJ84: 1015 | AK84: 16.885 | AL84: 15.70197982 | AM84: 16 | AN84: 3.32823
Q85: 1015.25 | R85: 17.0293675 | S85: 15.90480003 | T85: 16.1 | U85: -2.53330438 | AJ85: 1015.25 | AK85: 16.831 | AL85: 15.64797982 | AM85: 16.1 | AN85: 3.34137744
Q86: 1015.5 | R86: 16.973185 | S86: 15.84861753 | T86: 16.2 | U86: -2.51637304 | AJ86: 1015.5 | AK86: 16.777 | AL86: 15.59397982 | AM86: 16.2 | AN86: 3.35459992
Q87: 1015.75 | R87: 16.9170025 | S87: 15.79243503 | T87: 16.3 | U87: -2.49925826 | AJ87: 1015.75 | AK87: 16.723 | AL87: 15.53997982 | AM87: 16.3 | AN87: 3.36789768
Q88: 1016 | R88: 16.86082 | S88: 15.73625253 | T88: 16.4 | U88: -2.48196232 | AJ88: 1016 | AK88: 16.669 | AL88: 15.48597982 | AM88: 16.4 | AN88: 3.38127096
Q89: 1016.25 | R89: 16.8046375 | S89: 15.68007003 | T89: 16.5 | U89: -2.4644875 | AJ89: 1016.25 | AK89: 16.615 | AL89: 15.43197982 | AM89: 16.5 | AN89: 3.39472
Q90: 1016.5 | R90: 16.748455 | S90: 15.62388753 | T90: 16.6 | U90: -2.44683608 | AJ90: 1016.5 | AK90: 16.561 | AL90: 15.37797982 | AM90: 16.6 | AN90: 3.40824504
Q91: 1016.75 | R91: 16.6922725 | S91: 15.56770503 | T91: 16.7 | U91: -2.42901034 | AJ91: 1016.75 | AK91: 16.507 | AL91: 15.32397982 | AM91: 16.7 | AN91: 3.42184632
Q92: 1017 | R92: 16.63609 | S92: 15.51152253 | T92: 16.8 | U92: -2.41101256 | AJ92: 1017 | AK92: 16.453 | AL92: 15.26997982 | AM92: 16.8 | AN92: 3.43552408
Q93: 1017.25 | R93: 16.5799075 | S93: 15.45534003 | T93: 16.9 | U93: -2.39284502 | AJ93: 1017.25 | AK93: 16.399 | AL93: 15.21597982 | AM93: 16.9 | AN93: 3.44927856
Q94: 1017.5 | R94: 16.523725 | S94: 15.39915753 | T94: 17 | U94: -2.37451 | AJ94: 1017.5 | AK94: 16.345 | AL94: 15.16197982 | AM94: 17 | AN94: 3.46311
Q95: 1017.75 | R95: 16.4675425 | S95: 15.34297503 | T95: 17.1 | U95: -2.35600978 | AJ95: 1017.75 | AK95: 16.291 | AL95: 15.10797982 | AM95: 17.1 | AN95: 3.47701864
Q96: 1018 | R96: 16.41136 | S96: 15.28679253 | T96: 17.2 | U96: -2.33734664 | AJ96: 1018 | AK96: 16.237 | AL96: 15.05397982 | AM96: 17.2 | AN96: 3.49100472
Q97: 1018.25 | R97: 16.3551775 | S97: 15.23061003 | T97: 17.3 | U97: -2.31852286 | AJ97: 1018.25 | AK97: 16.183 | AL97: 14.99997982 | AM97: 17.3 | AN97: 3.50506848
Q98: 1018.5 | R98: 16.298995 | S98: 15.17442753 | T98: 17.4 | U98: -2.29954072 | AJ98: 1018.5 | AK98: 16.129 | AL98: 14.94597982 | AM98: 17.4 | AN98: 3.51921016
Q99: 1018.75 | R99: 16.2428125 | S99: 15.11824503 | T99: 17.5 | U99: -2.2804025 | AJ99: 1018.75 | AK99: 16.075 | AL99: 14.89197982 | AM99: 17.5 | AN99: 3.53343
Q100: 1019 | R100: 16.18663 | S100: 15.06206253 | T100: 17.6 | U100: -2.26111048 | AJ100: 1019 | AK100: 16.021 | AL100: 14.83797982 | AM100: 17.6 | AN100: 3.54772824
Q101: 1019.25 | R101: 16.1304475 | S101: 15.00588003 | T101: 17.7 | U101: -2.24166694 | AJ101: 1019.25 | AK101: 15.967 | AL101: 14.78397982 | AM101: 17.7 | AN101: 3.56210512
Q102: 1019.5 | R102: 16.074265 | S102: 14.94969753 | T102: 17.8 | U102: -2.22207416 | AJ102: 1019.5 | AK102: 15.913 | AL102: 14.72997982 | AM102: 17.8 | AN102: 3.57656088
Q103: 1019.75 | R103: 16.0180825 | S103: 14.89351503 | T103: 17.9 | U103: -2.20233442 | AJ103: 1019.75 | AK103: 15.859 | AL103: 14.67597982 | AM103: 17.9 | AN103: 3.59109576
Q104: 1020 | R104: 15.9619 | S104: 14.83733253 | T104: 18 | U104: -2.18245 | AJ104: 1020 | AK104: 15.805 | AL104: 14.62197982 | AM104: 18 | AN104: 3.60571
Q105: 1020.25 | R105: 15.9057175 | S105: 14.78115003 | T105: 18.1 | U105: -2.16242318 | AJ105: 1020.25 | AK105: 15.751 | AL105: 14.56797982 | AM105: 18.1 | AN105: 3.62040384
Q106: 1020.5 | R106: 15.849535 | S106: 14.72496753 | T106: 18.2 | U106: -2.14225624 | AJ106: 1020.5 | AK106: 15.697 | AL106: 14.51397982 | AM106: 18.2 | AN106: 3.63517752
Q107: 1020.75 | R107: 15.7933525 | S107: 14.66878503 | T107: 18.3 | U107: -2.12195146 | AJ107: 1020.75 | AK107: 15.643 | AL107: 14.45997982 | AM107: 18.3 | AN107: 3.65003128
Q108: 1021 | R108: 15.73717 | S108: 14.61260253 | T108: 18.4 | U108: -2.10151112 | AJ108: 1021 | AK108: 15.589 | AL108: 14.40597982 | AM108: 18.4 | AN108: 3.66496536
Q109: 1021.25 | R109: 15.6809875 | S109: 14.55642003 | T109: 18.5 | U109: -2.0809375 | AJ109: 1021.25 | AK109: 15.535 | AL109: 14.35197982 | AM109: 18.5 | AN109: 3.67998
Q110: 1021.5 | R110: 15.624805 | S110: 14.50023753 | T110: 18.6 | U110: -2.06023288 | AJ110: 1021.5 | AK110: 15.481 | AL110: 14.29797982 | AM110: 18.6 | AN110: 3.69507544
Q111: 1021.75 | R111: 15.5686225 | S111: 14.44405503 | T111: 18.7 | U111: -2.03939954 | AJ111: 1021.75 | AK111: 15.427 | AL111: 14.24397982 | AM111: 18.7 | AN111: 3.71025192
Q112: 1022 | R112: 15.51244 | S112: 14.38787253 | T112: 18.8 | U112: -2.01843976 | AJ112: 1022 | AK112: 15.373 | AL112: 14.18997982 | AM112: 18.8 | AN112: 3.72550968
Q113: 1022.25 | R113: 15.4562575 | S113: 14.33169003 | T113: 18.9 | U113: -1.99735582 | AJ113: 1022.25 | AK113: 15.319 | AL113: 14.13597982 | AM113: 18.9 | AN113: 3.74084896
Q114: 1022.5 | R114: 15.400075 | S114: 14.27550753 | T114: 19 | U114: -1.97615 | AJ114: 1022.5 | AK114: 15.265 | AL114: 14.08197982 | AM114: 19 | AN114: 3.75627
Q115: 1022.75 | R115: 15.3438925 | S115: 14.21932503 | T115: 19.1 | U115: -1.95482458 | AJ115: 1022.75 | AK115: 15.211 | AL115: 14.02797982 | AM115: 19.1 | AN115: 3.77177304
Q116: 1023 | R116: 15.28771 | S116: 14.16314253 | T116: 19.2 | U116: -1.93338184 | AJ116: 1023 | AK116: 15.157 | AL116: 13.97397982 | AM116: 19.2 | AN116: 3.78735832
Q117: 1023.25 | R117: 15.2315275 | S117: 14.10696003 | T117: 19.3 | U117: -1.91182406 | AJ117: 1023.25 | AK117: 15.103 | AL117: 13.91997982 | AM117: 19.3 | AN117: 3.80302608
Q118: 1023.5 | R118: 15.175345 | S118: 14.05077753 | T118: 19.4 | U118: -1.89015352 | AJ118: 1023.5 | AK118: 15.049 | AL118: 13.86597982 | AM118: 19.4 | AN118: 3.81877656
Q119: 1023.75 | R119: 15.1191625 | S119: 13.99459503 | T119: 19.5 | U119: -1.8683725 | AJ119: 1023.75 | AK119: 14.995 | AL119: 13.81197982 | AM119: 19.5 | AN119: 3.83461
Q120: 1024 | R120: 15.06298 | S120: 13.93841253 | T120: 19.6 | U120: -1.84648328 | AJ120: 1024 | AK120: 14.941 | AL120: 13.75797982 | AM120: 19.6 | AN120: 3.85052664
Q121: 1024.25 | R121: 15.0067975 | S121: 13.88223003 | T121: 19.7 | U121: -1.82448814 | AJ121: 1024.25 | AK121: 14.887 | AL121: 13.70397982 | AM121: 19.7 | AN121: 3.86652672
Q122: 1024.5 | R122: 14.950615 | S122: 13.82604753 | T122: 19.8 | U122: -1.80238936 | AJ122: 1024.5 | AK122: 14.833 | AL122: 13.64997982 | AM122: 19.8 | AN122: 3.88261048
Q123: 1024.75 | R123: 14.8944325 | S123: 13.76986503 | T123: 19.9 | U123: -1.78018922 | AJ123: 1024.75 | AK123: 14.779 | AL123: 13.59597982 | AM123: 19.9 | AN123: 3.89877816
Q124: 1025 | R124: 14.83825 | S124: 13.71368253 | T124: 20 | U124: -1.75789 | AJ124: 1025 | AK124: 14.725 | AL124: 13.54197982 | AM124: 20 | AN124: 3.91503
Q125: 1025.25 | R125: 14.7820675 | S125: 13.65750003 | T125: 20.1 | U125: -1.73549398 | AJ125: 1025.25 | AK125: 14.671 | AL125: 13.48797982 | AM125: 20.1 | AN125: 3.93136624
Q126: 1025.5 | R126: 14.725885 | S126: 13.60131753 | T126: 20.2 | U126: -1.71300344 | AJ126: 1025.5 | AK126: 14.617 | AL126: 13.43397982 | AM126: 20.2 | AN126: 3.94778712
Q127: 1025.75 | R127: 14.6697025 | S127: 13.54513503 | T127: 20.3 | U127: -1.69042066 | AJ127: 1025.75 | AK127: 14.563 | AL127: 13.37997982 | AM127: 20.3 | AN127: 3.96429288
Q128: 1026 | R128: 14.61352 | S128: 13.48895253 | T128: 20.4 | U128: -1.66774792 | AJ128: 1026 | AK128: 14.509 | AL128: 13.32597982 | AM128: 20.4 | AN128: 3.98088376
Q129: 1026.25 | R129: 14.5573375 | S129: 13.43277003 | T129: 20.5 | U129: -1.6449875 | AJ129: 1026.25 | AK129: 14.455 | AL129: 13.27197982 | AM129: 20.5 | AN129: 3.99756
Q130: 1026.5 | R130: 14.501155 | S130: 13.37658753 | T130: 20.6 | U130: -1.62214168 | AJ130: 1026.5 | AK130: 14.401 | AL130: 13.21797982 | AM130: 20.6 | AN130: 4.01432184
Q131: 1026.75 | R131: 14.4449725 | S131: 13.32040503 | T131: 20.7 | U131: -1.59921274 | AJ131: 1026.75 | AK131: 14.347 | AL131: 13.16397982 | AM131: 20.7 | AN131: 4.03116952
Q132: 1027 | R132: 14.38879 | S132: 13.26422253 | T132: 20.8 | U132: -1.57620296 | AJ132: 1027 | AK132: 14.293 | AL132: 13.10997982 | AM132: 20.8 | AN132: 4.04810328
Q133: 1027.25 | R133: 14.3326075 | S133: 13.20804003 | T133: 20.9 | U133: -1.55311462 | AJ133: 1027.25 | AK133: 14.239 | AL133: 13.05597982 | AM133: 20.9 | AN133: 4.06512336
Q134: 1027.5 | R134: 14.276425 | S134: 13.15185753 | T134: 21 | U134: -1.52995 | AJ134: 1027.5 | AK134: 14.185 | AL134: 13.00197982 | AM134: 21 | AN134: 4.08223
Q135: 1027.75 | R135: 14.2202425 | S135: 13.09567503 | T135: 21.1 | U135: -1.50671138 | AJ135: 1027.75 | AK135: 14.131 | AL135: 12.94797982 | AM135: 21.1 | AN135: 4.09942344
Q136: 1028 | R136: 14.16406 | S136: 13.03949253 | T136: 21.2 | U136: -1.48340104 | AJ136: 1028 | AK136: 14.077 | AL136: 12.89397982 | AM136: 21.2 | AN136: 4.11670392
Q137: 1028.25 | R137: 14.1078775 | S137: 12.98331003 | T137: 21.3 | U137: -1.46002126 | AJ137: 1028.25 | AK137: 14.023 | AL137: 12.83997982 | AM137: 21.3 | AN137: 4.13407168
Q138: 1028.5 | R138: 14.051695 | S138: 12.92712753 | T138: 21.4 | U138: -1.43657432 | AJ138: 1028.5 | AK138: 13.969 | AL138: 12.78597982 | AM138: 21.4 | AN138: 4.15152696
Q139: 1028.75 | R139: 13.9955125 | S139: 12.87094503 | T139: 21.5 | U139: -1.4130625 | AJ139: 1028.75 | AK139: 13.915 | AL139: 12.73197982 | AM139: 21.5 | AN139: 4.16907
Q140: 1029 | R140: 13.93933 | S140: 12.81476253 | T140: 21.6 | U140: -1.38948808 | AJ140: 1029 | AK140: 13.861 | AL140: 12.67797982 | AM140: 21.6 | AN140: 4.18670104
Q141: 1029.25 | R141: 13.8831475 | S141: 12.75858003 | T141: 21.7 | U141: -1.36585334 | AJ141: 1029.25 | AK141: 13.807 | AL141: 12.62397982 | AM141: 21.7 | AN141: 4.20442032
Q142: 1029.5 | R142: 13.826965 | S142: 12.70239753 | T142: 21.8 | U142: -1.34216056 | AJ142: 1029.5 | AK142: 13.753 | AL142: 12.56997982 | AM142: 21.8 | AN142: 4.22222808
Q143: 1029.75 | R143: 13.7707825 | S143: 12.64621503 | T143: 21.9 | U143: -1.31841202 | AJ143: 1029.75 | AK143: 13.699 | AL143: 12.51597982 | AM143: 21.9 | AN143: 4.24012456
Q144: 1030 | R144: 13.7146 | S144: 12.59003253 | T144: 22 | U144: -1.29461 | AJ144: 1030 | AK144: 13.645 | AL144: 12.46197982 | AM144: 22 | AN144: 4.25811
Q145: 1030.25 | R145: 13.6584175 | S145: 12.53385003 | T145: 22.1 | U145: -1.27075678 | AJ145: 1030.25 | AK145: 13.591 | AL145: 12.40797982 | AM145: 22.1 | AN145: 4.27618464
Q146: 1030.5 | R146: 13.602235 | S146: 12.47766753 | T146: 22.2 | U146: -1.24685464 | AJ146: 1030.5 | AK146: 13.537 | AL146: 12.35397982 | AM146: 22.2 | AN146: 4.29434872
Q147: 1030.75 | R147: 13.5460525 | S147: 12.42148503 | T147: 22.3 | U147: -1.22290586 | AJ147: 1030.75 | AK147: 13.483 | AL147: 12.29997982 | AM147: 22.3 | AN147: 4.31260248
Q148: 1031 | R148: 13.48987 | S148: 12.36530253 | T148: 22.4 | U148: -1.19891272 | AJ148: 1031 | AK148: 13.429 | AL148: 12.24597982 | AM148: 22.4 | AN148: 4.33094616
Q149: 1031.25 | R149: 13.4336875 | S149: 12.30912003 | T149: 22.5 | U149: -1.1748775 | AJ149: 1031.25 | AK149: 13.375 | AL149: 12.19197982 | AM149: 22.5 | AN149: 4.34938
Q150: 1031.5 | R150: 13.377505 | S150: 12.25293753 | T150: 22.6 | U150: -1.15080248 | AJ150: 1031.5 | AK150: 13.321 | AL150: 12.13797982 | AM150: 22.6 | AN150: 4.36790424
Q151: 1031.75 | R151: 13.3213225 | S151: 12.19675503 | T151: 22.7 | U151: -1.12668994 | AJ151: 1031.75 | AK151: 13.267 | AL151: 12.08397982 | AM151: 22.7 | AN151: 4.38651912
Q152: 1032 | R152: 13.26514 | S152: 12.14057253 | T152: 22.8 | U152: -1.10254216 | AJ152: 1032 | AK152: 13.213 | AL152: 12.02997982 | AM152: 22.8 | AN152: 4.40522488
Q153: 1032.25 | R153: 13.2089575 | S153: 12.08439003 | T153: 22.9 | U153: -1.07836142 | AJ153: 1032.25 | AK153: 13.159 | AL153: 11.97597982 | AM153: 22.9 | AN153: 4.42402176
Q154: 1032.5 | R154: 13.152775 | S154: 12.02820753 | T154: 23 | U154: -1.05415 | AJ154: 1032.5 | AK154: 13.105 | AL154: 11.92197982 | AM154: 23 | AN154: 4.44291
Q155: 1032.75 | R155: 13.0965925 | S155: 11.97202503 | T155: 23.1 | U155: -1.02991018 | AJ155: 1032.75 | AK155: 13.051 | AL155: 11.86797982 | AM155: 23.1 | AN155: 4.46188984
Q156: 1033 | R156: 13.04041 | S156: 11.91584253 | T156: 23.2 | U156: -1.00564424 | AJ156: 1033 | AK156: 12.997 | AL156: 11.81397982 | AM156: 23.2 | AN156: 4.48096152
Q157: 1033.25 | R157: 12.9842275 | S157: 11.85966003 | T157: 23.3 | U157: -0.98135446 | AJ157: 1033.25 | AK157: 12.943 | AL157: 11.75997982 | AM157: 23.3 | AN157: 4.50012528
Q158: 1033.5 | R158: 12.928045 | S158: 11.80347753 | T158: 23.4 | U158: -0.95704312 | AJ158: 1033.5 | AK158: 12.889 | AL158: 11.70597982 | AM158: 23.4 | AN158: 4.51938136
Q159: 1033.75 | R159: 12.8718625 | S159: 11.74729503 | T159: 23.5 | U159: -0.9327125 | AJ159: 1033.75 | AK159: 12.835 | AL159: 11.65197982 | AM159: 23.5 | AN159: 4.53873
Q160: 1034 | R160: 12.81568 | S160: 11.69111253 | T160: 23.6 | U160: -0.90836488 | AJ160: 1034 | AK160: 12.781 | AL160: 11.59797982 | AM160: 23.6 | AN160: 4.55817144
Q161: 1034.25 | R161: 12.7594975 | S161: 11.63493003 | T161: 23.7 | U161: -0.88400254 | AJ161: 1034.25 | AK161: 12.727 | AL161: 11.54397982 | AM161: 23.7 | AN161: 4.57770592
Q162: 1034.5 | R162: 12.703315 | S162: 11.57874753 | T162: 23.8 | U162: -0.85962776 | AJ162: 1034.5 | AK162: 12.673 | AL162: 11.48997982 | AM162: 23.8 | AN162: 4.59733368
Q163: 1034.75 | R163: 12.6471325 | S163: 11.52256503 | T163: 23.9 | U163: -0.83524282 | AJ163: 1034.75 | AK163: 12.619 | AL163: 11.43597982 | AM163: 23.9 | AN163: 4.61705496
Q164: 1035 | R164: 12.59095 | S164: 11.46638253 | T164: 24 | U164: -0.81085 | AJ164: 1035 | AK164: 12.565 | AL164: 11.38197982 | AM164: 24 | AN164: 4.63687
Q165: 1035.25 | R165: 12.5347675 | S165: 11.41020003 | T165: 24.1 | U165: -0.78645158 | AJ165: 1035.25 | AK165: 12.511 | AL165: 11.32797982 | AM165: 24.1 | AN165: 4.65677904
Q166: 1035.5 | R166: 12.478585 | S166: 11.35401753 | T166: 24.2 | U166: -0.76204984 | AJ166: 1035.5 | AK166: 12.457 | AL166: 11.27397982 | AM166: 24.2 | AN166: 4.67678232
Q167: 1035.75 | R167: 12.4224025 | S167: 11.29783503 | T167: 24.3 | U167: -0.73764706 | AJ167: 1035.75 | AK167: 12.403 | AL167: 11.21997982 | AM167: 24.3 | AN167: 4.69688008
Q168: 1036 | R168: 12.36622 | S168: 11.24165253 | T168: 24.4 | U168: -0.71324552 | AJ168: 1036 | AK168: 12.349 | AL168: 11.16597982 | AM168: 24.4 | AN168: 4.71707256
Q169: 1036.25 | R169: 12.3100375 | S169: 11.18547003 | T169: 24.5 | U169: -0.6888475 | AJ169: 1036.25 | AK169: 12.295 | AL169: 11.11197982 | AM169: 24.5 | AN169: 4.73736
Q170: 1036.5 | R170: 12.253855 | S170: 11.12928753 | T170: 24.6 | U170: -0.66445528 | AJ170: 1036.5 | AK170: 12.241 | AL170: 11.05797982 | AM170: 24.6 | AN170: 4.75774264
Q171: 1036.75 | R171: 12.1976725 | S171: 11.07310503 | T171: 24.7 | U171: -0.64007114 | AJ171: 1036.75 | AK171: 12.187 | AL171: 11.00397982 | AM171: 24.7 | AN171: 4.77822072
Q172: 1037 | R172: 12.14149 | S172: 11.01692253 | T172: 24.8 | U172: -0.61569736 | AJ172: 1037 | AK172: 12.133 | AL172: 10.94997982 | AM172: 24.8 | AN172: 4.79879448
Q173: 1037.25 | R173: 12.0853075 | S173: 10.96074003 | T173: 24.9 | U173: -0.59133622 | AJ173: 1037.25 | AK173: 12.079 | AL173: 10.89597982 | AM173: 24.9 | AN173: 4.81946416
Q174: 1037.5 | R174: 12.029125 | S174: 10.90455753 | T174: 25 | U174: -0.56699 | AJ174: 1037.5 | AK174: 12.025 | AL174: 10.84197982 | AM174: 25 | AN174: 4.84023
Q175: 1037.75 | R175: 11.9729425 | S175: 10.84837503 | T175: 25.1 | U175: -0.54266098 | AJ175: 1037.75 | AK175: 11.971 | AL175: 10.78797982 | AM175: 25.1 | AN175: 4.86109224
Q176: 1038 | R176: 11.91676 | S176: 10.79219253 | T176: 25.2 | U176: -0.51835144 | AJ176: 1038 | AK176: 11.917 | AL176: 10.73397982 | AM176: 25.2 | AN176: 4.88205112
Q177: 1038.25 | R177: 11.8605775 | S177: 10.73601003 | T177: 25.3 | U177: -0.49406366 | AJ177: 1038.25 | AK177: 11.863 | AL177: 10.67997982 | AM177: 25.3 | AN177: 4.90310688
Q178: 1038.5 | R178: 11.804395 | S178: 10.67982753 | T178: 25.4 | U178: -0.46979992 | AJ178: 1038.5 | AK178: 11.809 | AL178: 10.62597982 | AM178: 25.4 | AN178: 4.92425976
Q179: 1038.75 | R179: 11.7482125 | S179: 10.62364503 | T179: 25.5 | U179: -0.4455625 | AJ179: 1038.75 | AK179: 11.755 | AL179: 10.57197982 | AM179: 25.5 | AN179: 4.94551
Q180: 1039 | R180: 11.69203 | S180: 10.56746253 | T180: 25.6 | U180: -0.42135368 | AJ180: 1039 | AK180: 11.701 | AL180: 10.51797982 | AM180: 25.6 | AN180: 4.96685784
Q181: 1039.25 | R181: 11.6358475 | S181: 10.51128003 | T181: 25.7 | U181: -0.39717574 | AJ181: 1039.25 | AK181: 11.647 | AL181: 10.46397982 | AM181: 25.7 | AN181: 4.98830352
Q182: 1039.5 | R182: 11.579665 | S182: 10.45509753 | T182: 25.8 | U182: -0.37303096 | AJ182: 1039.5 | AK182: 11.593 | AL182: 10.40997982 | AM182: 25.8 | AN182: 5.00984728
Q183: 1039.75 | R183: 11.5234825 | S183: 10.39891503 | T183: 25.9 | U183: -0.34892162 | AJ183: 1039.75 | AK183: 11.539 | AL183: 10.35597982 | AM183: 25.9 | AN183: 5.03148936
Q184: 1040 | R184: 11.4673 | S184: 10.34273253 | T184: 26 | U184: -0.32485 | AJ184: 1040 | AK184: 11.485 | AL184: 10.30197982 | AM184: 26 | AN184: 5.05323
Q185: 1040.25 | R185: 11.4111175 | S185: 10.28655003 | T185: 26.1 | U185: -0.30081838 | AJ185: 1040.25 | AK185: 11.431 | AL185: 10.24797982 | AM185: 26.1 | AN185: 5.07506944
Q186: 1040.5 | R186: 11.354935 | S186: 10.23036753 | T186: 26.2 | U186: -0.27682904 | AJ186: 1040.5 | AK186: 11.377 | AL186: 10.19397982 | AM186: 26.2 | AN186: 5.09700792
Q187: 1040.75 | R187: 11.2987525 | S187: 10.17418503 | T187: 26.3 | U187: -0.25288426 | AJ187: 1040.75 | AK187: 11.323 | AL187: 10.13997982 | AM187: 26.3 | AN187: 5.11904568
Q188: 1041 | R188: 11.24257 | S188: 10.11800253 | T188: 26.4 | U188: -0.22898632 | AJ188: 1041 | AK188: 11.269 | AL188: 10.08597982 | AM188: 26.4 | AN188: 5.14118296
Q189: 1041.25 | R189: 11.1863875 | S189: 10.06182003 | T189: 26.5 | U189: -0.2051375 | AJ189: 1041.25 | AK189: 11.215 | AL189: 10.03197982 | AM189: 26.5 | AN189: 5.16342
Q190: 1041.5 | R190: 11.130205 | S190: 10.00563753 | T190: 26.6 | U190: -0.18134008 | AJ190: 1041.5 | AK190: 11.161 | AL190: 9.977979819 | AM190: 26.6 | AN190: 5.18575704
Q191: 1041.75 | R191: 11.0740225 | S191: 9.949455026 | T191: 26.7 | U191: -0.15759634 | AJ191: 1041.75 | AK191: 11.107 | AL191: 9.923979819 | AM191: 26.7 | AN191: 5.20819432
Q192: 1042 | R192: 11.01784 | S192: 9.893272526 | T192: 26.8 | U192: -0.13390856 | AJ192: 1042 | AK192: 11.053 | AL192: 9.869979819 | AM192: 26.8 | AN192: 5.23073208
Q193: 1042.25 | R193: 10.9616575 | S193: 9.837090026 | T193: 26.9 | U193: -0.11027902 | AJ193: 1042.25 | AK193: 10.999 | AL193: 9.815979819 | AM193: 26.9 | AN193: 5.25337056
Q194: 1042.5 | R194: 10.905475 | S194: 9.780907526 | T194: 27 | U194: -0.08671 | AJ194: 1042.5 | AK194: 10.945 | AL194: 9.761979819 | AM194: 27 | AN194: 5.27611
Q195: 1042.75 | R195: 10.8492925 | S195: 9.724725026 | T195: 27.1 | U195: -0.06320378 | AJ195: 1042.75 | AK195: 10.891 | AL195: 9.707979819 | AM195: 27.1 | AN195: 5.29895064
Q196: 1043 | R196: 10.79311 | S196: 9.668542526 | T196: 27.2 | U196: -0.03976264 | AJ196: 1043 | AK196: 10.837 | AL196: 9.653979819 | AM196: 27.2 | AN196: 5.32189272
Q197: 1043.25 | R197: 10.7369275 | S197: 9.612360026 | T197: 27.3 | U197: -0.01638886 | AJ197: 1043.25 | AK197: 10.783 | AL197: 9.599979819 | AM197: 27.3 | AN197: 5.34493648
Q198: 1043.5 | R198: 10.680745 | S198: 9.556177526 | T198: 27.4 | U198: 0.00691528 | AJ198: 1043.5 | AK198: 10.729 | AL198: 9.545979819 | AM198: 27.4 | AN198: 5.36808216
Q199: 1043.75 | R199: 10.6245625 | S199: 9.499995026 | T199: 27.5 | U199: 0.0301475 | AJ199: 1043.75 | AK199: 10.675 | AL199: 9.491979819 | AM199: 27.5 | AN199: 5.39133
Q200: 1044 | R200: 10.56838 | S200: 9.443812526 | T200: 27.6 | U200: 0.05330552 | AJ200: 1044 | AK200: 10.621 | AL200: 9.437979819 | AM200: 27.6 | AN200: 5.41468024
... 74 more rows
